{"text_format":"1","workbook":"xlsx","n_sheets":10,"sheets":["input","組合せ表","クラブ組合せ表","スコア記入","成績表","interface","名簿ﾘｽﾄ","機能","使い方","Sheet1"],"not_rendered":{"charts":0,"images":0,"macros":1,"external_links":0,"defined_names":5,"comments":0,"pivot_tables":0},"unopened":[],"bounds":{"document_bytes":16777216,"sheet_cells":100000,"rows_first":2000,"rows_last":500,"rows_between":2000,"halvings":0,"cell_chars":16384,"cell_head_chars":4096},"cells_cut":0,"cells_raw":0,"read":"whole","date_system":"1900"}

{"sheet":"input","index":0,"n_rows":296,"n_cols":115,"rows_kept":296,"cut":false,"hidden":false,"merged":[[4,8,4,10],[5,8,5,10],[6,8,6,10],[167,75,167,76],[166,60,166,70],[57,23,57,24],[167,60,167,61],[158,50,159,55],[166,75,166,85]]}
[1,{"$f":"A1+1","v":2},{"$f":"B1+1","v":3},4,5,6,7,8,9,10,11,12,13,14,15,16,17,18,19,20,21,22,23,24,25,26,27,28,29,30,31,32,33,34,35,36,37,38,39,40,41,42,43,44,45,46,47,48,49,50,51,52,53,54,55,56,57,58,59,60,61,62,63,64,65,66,67,68,69,70,71,72,73,74,75,76,77,78,79,80,81,82,83,84,85,86,87,88,89,90,91,92,93,94,95,96,97,98,99,100,101,102,103,104,105,106,107,108,109,110,111,112,113,114,115]
[null,null,null,null,null,null,null,null,null,null,null,null,null,null,null,null,null,null,null,null,null,"12/11/2017 rev-0",null,null,null,null,null,null,null,null,"rev-0",null,null,null,null,null,null,null,null,null,null,null,null,null,null,null,null,null,null,null,null,null,null,null,null,null,null,null,null,null,null,null,"五十嵐","$F$14","五十嵐"]
[null,null,null,null,null,null,null,null,null,null,null,null,null,null,null,null,null,null,null,null,null,null,null,null,null,null,null,null,null,null,null,null,null,null,null,null,null,null,null,null,null,null,null,null,null,null,null,null,null,null,null,null,null,null,null,null,null,null,null,null,null,null,"井田","$F$15","井田"]
[null,null,null,null,null,null,null,"開催回数","第",null,"回",null,null,null,null,null,null,null,null,"全て消去されます",null,null,null,null,null,null,null,null,null,null,null,null,null,null,null,null,null,null,null,null,null,null,null,null,null,null,null,null,null,null,null,null,null,null,null,null,null,null,null,null,null,null,"伊藤","$F$17","伊藤"]
[null,null,null,null,null,null,null,"日時",null,null,null,null,null,null,null,null,null,null,null,null,null,null,null,null,null,null,null,null,null,null,null,null,null,null,null,null,null,null,null,null,null,null,null,null,null,null,null,null,null,null,null,null,null,null,null,null,null,null,null,null,null,null,"内田","$F$19","内田"]
[null,null,null,null,null,null,null,"場所",null,null,null,null,null,null,null,null,null,null,null,"ﾌﾘｰｽﾞ時",null,null,null,null,null,null,null,null,null,null,null,null,null,null,null,null,null,null,null,null,null,null,null,null,null,null,null,null,null,null,null,null,null,null,null,null,null,null,null,null,null,null,"大塩","$F$20","大塩"]
[null,null,null,null,null,null,null,"幹事",null,null,null,null,null,null,null,null,null,null,null,null,"（入力内容は消去されません）",null,null,null,null,null,null,null,null,null,null,null,null,null,null,null,null,null,null,null,null,null,null,null,null,null,null,null,null,null,null,null,null,null,null,null,null,null,null,null,null,null,"増澤","$J$12","増澤"]
[null,null,null,null,null,null,null,null,null,null,null,null,null,null,null,null,null,null,null,null,null,null,null,null,null,null,null,null,null,null,null,null,null,null,null,null,null,null,null,null,null,null,null,null,null,null,null,null,null,null,null,null,null,null,null,null,null,null,null,null,null,null,"豆田","$J$13","豆田"]
[null,null,null,null,null,"出欠表",null,null,"移動する名前",{"$f":"IF(AW101=\"\",\"\",AW101)","v":""},null,null,null,null,null,"組合せ表",null,null,null,"入替名前",null,null,null,null,null,null,null,null,null,null,null,null,null,null,null,null,null,null,null,null,null,null,null,null,null,null,null,null,null,null,null,null,null,null,null,null,null,null,null,null,null,null,"三井","$J$14","三井"]
[null,null,null,null,null,null,null,null,null,null,null,null,null,null,null,{"$f":"IF(BF161=10,\"manual-mode\",IF(BF161=100,\"std-by\",\"auto-mode\"))","v":"std-by"},null,null,null,null,null,null,null,null,null,null,null,null,null,null,null,null,null,null,null,null,null,null,null,null,null,null,null,null,null,null,null,null,null,null,null,null,null,null,null,null,null,null,null,null,null,null,"南村","$J$15","南村"]
[null,null,null,null,null,"ｱ行","ｶ行","ｻ・ﾀ行","ﾅ・ﾊ行","ﾏ‥行",null,null,null,null,null,"OUT/IN","ｽﾀｰﾄ時刻",1,2,3,4,null,null,null,null,null,null,null,null,null,null,null,null,null,null,null,null,null,null,null,null,null,null,null,null,null,null,null,null,null,null,null,null,null,null,null,null,null,null,null,null,null,"宮住","$J$16","宮住"]
[null,null,null,null,null,"安藤","笠原","坂本","中川","松岡",null,null,null,null,null,null,null,null,null,null,null,null,null,null,null,null,null,null,null,null,null,null,null,null,null,null,null,null,null,null,null,null,null,null,null,null,null,null,null,null,null,null,null,null,null,null,null,null,null,null,null,null,"村上","$J$17","村上"]
[null,null,null,null,null,"飯田","勝田","佐藤清","中山","豆田",null,null,null,null,null,null,null,null,null,null,null,null,null,null,null,null,null,null,null,null,null,null,null,null,null,null,null,null,null,null,null,null,null,null,null,null,null,null,null,null,null,null,null,null,null,null,null,null,null,null,null,null,"茂木","$J$18","茂木"]
[null,null,null,null,null,"五十嵐","神崎","里中","林","三井",null,null,null,null,null,null,null,null,null,null,null,null,null,null,null,null,null,null,null,null,null,null,null,null,null,null,null,null,null,null,null,null,null,null,null,null,null,null,null,null,null,null,null,null,null,null,null,null,null,null,null,null,"吉岡","$J$22","吉岡"]
[null,null,null,null,null,"市来","神林","佐土原","福山","南村",null,null,null,null,null,null,null,null,null,null,null,null,null,null,null,null,null,null,null,null,null,null,null,null,null,null,null,null,null,null,null,null,null,null,null,null,null,null,null,null,null,null,null,null,null,null,null,null,null,null,null,null,"吉澤","$J$23","吉澤"]
[null,null,null,null,null,"伊藤","君島","塩崎","藤田","宮田",null,null,null,null,null,null,null,null,null,null,null,null,null,null,null,null,null,null,null,null,null,null,null,null,null,null,null,null,null,null,null,null,null,null,null,null,null,null,null,null,null,null,null,null,null,null,null,null,null,null,null,null,"吉田","$J$24","吉田"]
[null,null,null,null,null,"上田","郷間","鈴木","古海","村上",null,null,null,null,null,null,null,null,null,null,null,null,null,null,null,null,null,null,null,null,null,null,null,null,null,null,null,null,null,null,null,null,null,null,null,null,null,null,null,null,null,null,null,null,null,null,null,null,null,null,null,null,"渡辺","$J$25","渡辺"]
[null,null,null,null,null,"大塩","小林邦","高木","奈良","森"]
[null,null,null,null,null,"大橋","小林修","田中",null,"山中"]
[null,null,null,null,null,"岡本","小和瀬","塚越",null,"湯浅"]
[null,null,null,null,null,"興津","近藤静","次橋",null,"横山"]
[null,null,null,null,null,"奥原","近藤裕","坪原",null,"吉澤"]
[null,null,null,null,null,"小倉",null,"豊島",null,"吉田"]
[null,null,null,null,null,"小野山",null,null,null,"渡辺昭",null,null,null,null,null,"組合せ表の作り方"]
[null,null,null,null,null,null,null,null,null,"渡辺政",null,null,null,null,null,"自動ﾓｰﾄﾞ(自動配置)とﾏﾆｭｱﾙﾓｰﾄﾞがあります"]
[null,null,null,null,null,null,null,null,null,"村中",null,null,null,null,null,"何れの場合も下記の要領でﾒﾝﾊﾞｰの変更、作成できます"]
[null,null,null,null,null,null,null,null,null,null,null,null,null,null,null,"・追加：出欠表の名前を右ｼﾝｸﾞﾙｸﾘｯｸし、組合せ表で再度"]
[null,null,null,null,null,"出欠人数","出席(橙)",null,null,null,null,null,null,null,null,null,"　  右ｼﾝｸﾞﾙｸﾘｯｸしてください"]
[null,null,null,null,null,null,"欠席(青)",null,null,null,null,null,null,null,null,"・削除：削除する名前を右ｼﾝｸﾞﾙｸﾘｯｸしてください"]
[null,null,null,null,null,null,"未回答(黒)",null,null,null,null,null,null,null,null,"・入替：組合せ表上で入替える名前を各々ﾀﾞﾌﾞﾙｸﾘｯｸしてください"]
[null,null,null,null,"出欠の記入",null,null,null,null,null,null,null,null,null,null,"・OUT/INをｺｰｽ名にするときは最後に名称を変更&保存してください"]
[null,null,null,null,"・出席登録：名前をﾀﾞﾌﾞﾙｸﾘｯｸすると橙色に変わり登録されます"]
[null,null,null,null,"・出席⇒欠席変更：名前(橙色)を再度ﾀﾞﾌﾞﾙｸﾘｯｸで欠席になります",null,null,null,null,null,null,null,null,null,null,null,"ﾀﾞﾌﾞﾙｸﾘｯｸ：通常のﾀﾞﾌﾞﾙｸﾘｯｸです。（ﾏｳｽの左ﾎﾞﾀﾝ2回click）"]
[null,null,null,null,"・出席者を基に自動組合せ作成ができます",null,null,null,null,null,null,null,null,null,null,null,"右ｼﾝｸﾞﾙｸﾘｯｸ：ﾏｳｽの右ﾎﾞﾀﾝを1回ｸﾘｯｸしてください",null,null,null,null,null,null,"myflg1,2はuserform2でinitializeしmodule1でtrue,falseを設定。Workbook及びUserform2を開くたびにtrueに初期設定"]
[null,null,null,null,"・出欠表注意事項"]
[null,null,null,null,null,"組合せ表上でも追加出席、欠席の操作ができます。"]
[null,null,null,null,null,"ここで行われた操作はすべて出欠表に反映されます。追加修正前の出欠表は下段に表示されています"]
[]
[]
[]
[]
[null,null,null,null,null,"ｱ行","ｶ行","ｻ・ﾀ行","ﾅ・ﾊ行","ﾏ‥行"]
[null,null,null,null,null,"青嶋","笠原","坂本","中川","増澤"]
[null,null,null,null,null,"秋山","勝田","佐藤清","中山","豆田"]
[null,null,null,null,null,"五十嵐","神崎","里中","林","三井"]
[null,null,null,null,null,"市来","神林","佐土原","福島","南村"]
[null,null,null,null,null,"伊藤","君島","塩崎","福山","宮住"]
[null,null,null,null,null,"上田","郷間","鈴木","藤沢","村上"]
[null,null,null,null,null,"内田","小林邦","高木","藤田","茂木"]
[null,null,null,null,null,"大塩","小林修","田中","古海","山中"]
[null,null,null,null,null,"岡本","近藤裕","次橋",null,"湯浅"]
[null,null,null,null,null,"興津",null,"坪原",null,"横山"]
[null,null,null,null,null,"奥原",null,null,null,"吉澤"]
[null,null,null,null,null,"小倉",null,null,null,"吉田"]
[null,null,null,null,null,"小野山",null,null,null,"渡辺昭"]
[null,null,null,null,null,null,null,null,null,"渡辺政"]
[]
[]
[null,null,null,null,null,"出欠人数"]
[null,null,null,null,null,"出席(橙)","13名"]
[null,null,null,null,null,"欠席(青)","0名"]
[null,null,null,null,null,"未回答(黒)","41名"]
[]
[]
[]
[]
[]
[]
[]
[]
[]
[]
[]
[]
[]
[]
[]
[]
[]
[]
[]
[]
[]
[]
[]
[]
[]
[]
[]
[]
[]
[]
[]
[]
[]
[null,null,null,null,null,null,null,null,null,null,null,null,null,null,null,null,null,null,null,null,null,null,null,null,null,null,null,null,null,null,null,null,null,null,null,null,null,null,null,null,null,null,null,null,null,null,null,null,null,null,"年齢順に並び替える（ｼｰﾄ上でVLOOKUP）、成績表番号も一緒に並び替え。並び替えはVBAでSWAP",null,null,null,null,null,null,null,null,null,null,null,null,null,null,null,null,null,null,null,null,null,null,null,null,null,null,null,null,null,81,82,83,84,85,86,87,88,89,90]
[]
[null,null,null,null,null,null,null,null,null,null,null,null,null,null,null,null,null,null,null,null,null,null,null,null,null,null,null,null,null,null,null,null,null,null,null,null,null,null,null,null,null,null,null,null,null,null,null,null,null,null,null,"組合せ表を配列ｍｍｂｒ０へコピーし年齢順に並べ替えるﾏｸﾛ－【older_left】 上段：入力のまま年齢、ｽｺｱ等データを取り込み。下段：【mmbr１】を基準に年齢順に並び替えた",null,null,null,null,null,null,null,null,null,null,null,null,null,null,null,null,null,null,null,null,null,null,null,null,null,null,null,null,null,"成績表No","フリガナ","生年月日","日数（計算）","今年の成績","去年の成績","ID"]
[null,null,null,null,null,null,null,null,null,null,null,null,null,null,null,null,null,null,null,null,null,null,null,null,null,null,null,null,null,null,null,null,null,null,null,null,null,null,null,null,null,null,null,null,"コース名変更/DEFAULTの選択",null,null,null,"右クリック\n↓データ保存",null,"mmbr0",null,null,null,null,"mmbr1",null,null,null,null,"mmbr2",null,null,null,null,"mmbr3",null,null,null,null,"mmbr4",null,null,null,null,"mmbr5",null,null,null,null,"変更禁止  「名簿ﾘｽﾄ」ｼｰﾄからMACROでコピーされる。変更には「名簿ﾘｽﾄ」ｼｰﾄの更新が必要",null,null,null,null,null,null,null,null,"memberlist","開催計画　memberlistで成績表からコピー"]
[null,null,null,null,null,null,null,null,null,null,null,null,null,null,null,null,null,null,null,null,null,null,null,null,null,null,null,null,null,null,null,null,null,null,null,null,null,null,null,null,null,null,null,null,"OUT/IN名称",null,null,null,"（変更禁止）",null,"組合せ表のコピー",null,"older_leftで書込み",null,null,"年齢日数",null,null,null,null,"今年の成績",null,null,null,null,"去年の成績",null,null,null,null,"成績表No",null,"ｼｰﾄ上で計算",null,null,"ID",null,null,null,null,null,"名簿ﾘｽﾄ","名簿ﾘｽﾄ","名簿ﾘｽﾄ","計算","成績表","成績表",null,null,"ascコード"]
[null,null,null,null,null,null,null,null,null,null,null,null,null,null,null,null,null,null,null,null,null,null,null,null,null,null,null,null,null,null,null,null,null,null,null,null,null,null,null,null,null,null,null,"OUT","rrr",null,"↓名称変更する：TRUE",null,null,null,null,null,null,null,null,null,null,null,null,null,null,null,null,null,null,null,null,null,null,null,null,null,null,null,null,null,null,null,null,null,"安藤",1,"アンドウ　アキオ","1952-08-08",26219,95.916666666666671,null,77,"安藤　明夫",12450,1,"3/11","吉井南陽台ＧＣ","里中",null,"開催回数=",{"$f":"J4","v":0}]
[null,null,null,null,null,null,null,null,null,null,null,null,null,null,null,null,null,null,null,null,null,null,null,null,null,null,null,null,null,null,null,null,null,null,null,null,null,null,null,null,null,null,null,"IN","yyy",false,null,null,null,null,null,null,null,null,null,null,null,null,null,null,null,null,null,null,null,null,null,null,null,null,null,null,null,null,null,null,null,null,null,null,"飯田",2,"イイダ　ノボル","1946-03-03",28569,"",null,78,"飯田　登",12452,2,"3/25","緑野CC","藤田",null,"日付",{"$f":"VLOOKUP($CS$101,$CM$101:$CP$119,2,FALSE)","v":{"$error":"#N/A"}}]
[null,null,null,null,null,null,null,null,null,null,null,null,null,null,null,null,null,null,null,null,null,null,null,null,null,null,null,null,null,null,null,null,null,null,null,null,null,null,null,null,null,null,null,null,null,null,null,null,null,null,null,null,null,null,null,null,null,null,null,null,null,null,null,null,null,null,null,null,null,null,null,null,null,null,null,null,null,null,null,null,"五十嵐",3,"イガラシ　シンタロウ","1945-12-28",28634,95.333333333333329,null,30,"五十嵐　信太郎",12452,3,"4/8","梅ノ郷GC","塚越",null,"場所",{"$f":"VLOOKUP($CS$101,$CM$101:$CP$119,3,FALSE)","v":{"$error":"#N/A"}}]
[null,null,null,null,null,null,null,null,null,null,null,null,null,null,null,null,null,null,null,null,null,null,null,null,null,null,null,null,null,null,null,null,null,null,null,null,null,null,null,null,null,null,null,null,null,null,"組合せ表で使用",null,null,null,null,null,null,null,null,null,null,null,null,null,null,null,null,null,null,null,null,null,null,null,null,null,null,null,null,null,null,null,null,null,"市来",4,"イチキ　マサヒロ","1945-02-06",28959,101,null,32,"市来　正浩 ",12452,4,"4/22","ｸﾞﾘｰﾝﾊﾟｰｸＧＣ","小和瀬",null,"幹事",{"$f":"VLOOKUP($CS$101,$CM$101:$CP$119,4,FALSE)","v":{"$error":"#N/A"}}]
[null,null,null,null,null,null,null,null,null,null,null,null,null,null,null,null,null,null,null,null,null,null,null,null,null,null,null,null,null,null,null,null,null,null,null,null,null,null,null,null,null,null,null,null,{"$f":"$AS$101&\"1組\"","v":"rrr1組"},"OUT 1組",{"$f":"IF($AT$102=TRUE,AS105,AT105)","v":"OUT 1組"},null,null,null,null,null,null,null,null,null,null,null,null,null,null,null,null,null,null,null,null,null,null,null,null,null,null,null,null,null,null,null,null,null,"伊藤",5,"イトウ　マサアキ","1949-07-23",27331,100,null,57,"伊藤 雅明",12452,5,"5/7","甘楽CC","田中"]
[null,null,null,null,null,null,null,null,null,null,null,null,null,null,null,null,null,null,null,null,null,null,null,null,null,null,null,null,null,null,null,null,null,null,null,null,null,null,null,null,null,null,null,null,{"$f":"$AS$102&\"1組\"","v":"yyy1組"},"IN 1組",{"$f":"IF($AT$102=TRUE,AS106,AT106)","v":"IN 1組"},null,null,null,null,null,null,null,null,null,null,null,null,null,null,null,null,null,null,null,null,null,null,null,null,null,null,null,null,null,null,null,null,null,"上田",6,"ウエダ　セイイチ","1947-02-02",28233,95,null,33,"上田　誠一",12454,6,"5/20","桐生ＣＣ","古海"]
[null,null,null,null,null,null,null,null,null,null,null,null,null,null,null,null,null,null,null,null,null,null,null,null,null,null,null,null,null,null,null,null,null,null,null,null,null,null,null,null,null,null,null,null,{"$f":"$AS$101&\"2組\"","v":"rrr2組"},"OUT 2組","OUT 2組",null,null,null,null,null,null,null,null,null,null,null,null,null,null,null,null,null,null,null,null,null,null,null,null,null,null,null,null,null,null,null,null,null,"大塩",7,"オオシオ　タダシ","1948-11-29",27567,92.818181818181813,null,44,"大塩 忠",12458,7,"6/3","小幡郷CC","森"]
[null,null,null,null,null,null,null,null,null,null,null,null,null,null,null,null,null,null,null,null,null,null,null,null,null,null,null,null,null,null,null,null,null,null,null,null,null,null,null,null,null,null,null,null,{"$f":"$AS$102&\"2組\"","v":"yyy2組"},"IN 2組","IN 2組",null,null,null,null,null,null,null,null,null,null,null,null,null,null,null,null,null,null,null,null,null,null,null,null,null,null,null,null,null,null,null,null,null,"大橋",8,"オオハシ　ユタカ","1955-10-16",25055,95.888888888888886,null,86,"大橋　豊",12458,8,"6/17","上毛ﾉｰｻﾞﾝ","塩崎"]
[null,null,null,null,null,null,null,null,null,null,null,null,null,null,null,null,null,null,null,null,null,null,null,null,null,null,null,null,null,null,null,null,null,null,null,null,null,null,null,null,null,null,null,null,{"$f":"$AS$101&\"3組\"","v":"rrr3組"},"OUT 3組","OUT 3組",null,null,null,null,null,null,null,null,null,null,null,null,null,null,null,null,null,null,null,null,null,null,null,null,null,null,null,null,null,null,null,null,null,"岡本",9,"オカモト　カオル","1943-10-13",29441,100.5,null,35,"岡本　馨",12458,9,"7/22","ﾉｰｻﾞﾝ赤城","高木"]
[null,null,null,null,null,null,null,null,null,null,null,null,null,null,null,null,null,null,null,null,null,null,null,null,null,null,null,null,null,null,null,null,null,null,null,null,null,null,null,null,null,null,null,null,{"$f":"$AS$102&\"3組\"","v":"yyy3組"},"IN 3組","IN 3組",null,null,null,null,null,null,null,null,null,null,null,null,null,null,null,null,null,null,null,null,null,null,null,null,null,null,null,null,null,null,null,null,null,"興津",10,"オキツ　タダタカ","1942-02-21",30040,89.5,null,13,"興津　忠隆",12458,10,"8/26","高山GC","神崎"]
[null,null,null,null,null,null,null,null,null,null,null,null,null,null,null,null,null,null,null,null,null,null,null,null,null,null,null,null,null,null,null,null,null,null,null,null,null,null,null,null,null,null,null,null,{"$f":"$AS$101&\"4組\"","v":"rrr4組"},"OUT 4組","OUT 4組",null,null,null,null,null,null,null,null,null,null,null,null,null,null,null,null,null,null,null,null,null,null,null,null,null,null,null,null,null,null,null,null,null,"奥原",11,"オクハラ　ヒロシ","1949-06-08",27376,95.6,null,68,"奥原　博",12458,11,"9/9","大平洋高崎","小倉"]
[null,null,null,null,null,null,null,null,null,null,null,null,null,null,null,null,null,null,null,null,null,null,null,null,null,null,null,null,null,null,null,null,null,null,null,null,null,null,null,null,null,null,null,null,{"$f":"$AS$102&\"4組\"","v":"yyy4組"},"IN 4組","IN 4組",null,null,null,null,null,null,null,null,null,null,null,null,null,null,null,null,null,null,null,null,null,null,null,null,null,null,null,null,null,null,null,null,null,"小倉",12,"オグラ　セツオ","1948-01-06",27895,115.33333333333333,null,59,"小倉　節生",12458,12,"9/30","ﾍﾞﾙｴｱ","笠原"]
[null,null,null,null,null,null,null,null,null,null,null,null,null,null,null,null,null,null,null,null,null,null,null,null,null,null,null,null,null,null,null,null,null,null,null,null,null,null,null,null,null,null,null,null,{"$f":"$AS$101&\"5組\"","v":"rrr5組"},"OUT 5組","OUT 5組",null,null,null,null,null,null,null,null,null,null,null,null,null,null,null,null,null,null,null,null,null,null,null,null,null,null,null,null,null,null,null,null,null,"小野山",13,"オノヤ マテツオ","1945-09-23",28730,99.4,null,22,"小野山　哲夫",12458,13,"10/8","白水CC","伊藤"]
[null,null,null,null,null,null,null,null,null,null,null,null,null,null,null,null,null,null,null,null,null,null,null,null,null,null,null,null,null,null,null,null,null,null,null,null,null,null,null,null,null,null,null,null,{"$f":"$AS$102&\"5組\"","v":"yyy5組"},"IN 5組","IN 5組",null,null,null,null,null,null,null,null,null,null,null,null,null,null,null,null,null,null,null,null,null,null,null,null,null,null,null,null,null,null,null,null,null,"笠原",14,"カサハラ　マサノブ","1952-04-14",26335,92.428571428571431,null,60,"笠原　正信",12459,14,"10/21","しぶかわCC","渡辺政"]
[null,null,null,null,null,null,null,null,null,null,null,null,null,null,null,null,null,null,null,null,null,null,null,null,null,null,null,null,null,null,null,null,null,null,null,null,null,null,null,null,null,null,null,null,{"$f":"$AS$101&\"6組\"","v":"rrr6組"},"OUT 6組","OUT 6組",null,null,null,"mmbr0を年齢順に並び替えmmbr10",null,null,null,null,"名前以外は配列自体を書き換え",null,null,null,null,null,null,null,null,null,null,null,null,null,null,null,null,"older_leftで書込み",null,null,null,null,null,null,null,"勝田",15,"カツタ　シゲオ","1950-02-07",27132,84.666666666666671,null,37,"勝田　重雄",12459,15,"11/5","富岡ｶﾝﾄﾘｰｻｳｽ","近藤裕"]
[null,null,null,null,null,null,null,null,null,null,null,null,null,null,null,null,null,null,null,null,null,null,null,null,null,null,null,null,null,null,null,null,null,null,null,null,null,null,null,null,null,null,null,null,{"$f":"$AS$102&\"6組\"","v":"yyy6組"},"IN 6組","IN 6組",null,null,null,null,null,null,null,null,null,null,null,null,null,null,null,null,null,null,null,null,null,null,null,null,null,null,null,null,null,null,null,null,null,"神崎",16,"カンザキ　リョウキチ","1950-06-12",27007,86,null,42,"神崎　了吉",12459,16,"11/18","藤岡東","佐藤清"]
[null,null,null,null,null,null,null,null,null,null,null,null,null,null,null,null,null,null,null,null,null,null,null,null,null,null,null,null,null,null,null,null,null,null,null,null,null,null,null,null,null,null,null,null,null,null,null,null,null,null,null,null,null,null,null,null,null,null,null,null,null,null,null,null,null,null,null,null,null,null,null,null,null,null,null,null,null,null,null,null,"神林",17,"カンバヤシ　カズオ","1947-04-28",28148,97.333333333333329,null,45,"神林 和夫",12459,17,"12/2","ｻﾝｺｰｶﾝﾄﾘｰ","山中"]
[null,null,null,null,null,null,null,null,null,null,null,null,null,null,null,null,null,null,null,null,null,null,null,null,null,null,null,null,null,null,null,null,null,null,null,null,null,null,null,null,null,null,null,null,null,null,null,null,null,null,null,null,null,null,null,null,null,null,null,null,null,null,null,null,null,null,null,null,null,null,null,null,null,null,null,null,null,null,null,null,"君島",18,"キミジマ　キュウジ","1943-01-01",29726,79.166666666666671,null,74,"君島　久次",12461,18,"12/13","富岡倶楽部","佐土原"]
[null,null,null,null,null,null,null,null,null,null,null,null,null,null,null,null,null,null,null,null,null,null,null,null,null,null,null,null,null,null,null,null,null,null,null,null,null,null,null,null,null,null,null,null," ",null,null,null,null,null,null,null,null,null,null,null,null,null,null,null,null,null,null,null,null,null,null,null,null,null,null,null,null,null,null,null,null,null,null,null,"郷間",19,"ゴウマ　タケシ","1944-10-13",29075,96,null,18,"郷間　武志",12468]
[null,null,null,null,null,null,null,null,null,null,null,null,null,null,null,null,null,null,null,null,null,null,null,null,null,null,null,null,null,null,null,null,null,null,null,null,null,null,null,null,null,null,null,null,null,null,null,null,"組合せ表",null,null,null,null,null,null,null,null,null,null,null,null,null,null,null,null,null,null,null,null,null,null,null,null,null,null,null,null,null,null,null,"小林邦",20,"コバヤシ　クニオ","1947-07-29",28056,"",null,63,"小林　邦雄",12467]
[null,null,null,null,null,null,null,null,null,null,null,null,null,null,null,null,null,null,null,null,null,null,null,null,null,null,null,null,null,null,null,null,null,null,null,null,null,null,null,null,null,null,null,null,null,null,null,null,null,null,null,null,null,null,null,null,null,null,null,null,null,null,null,null,null,null,null,null,null,null,null,null,null,null,null,null,null,null,null,null,"小林修",21,"コバヤシ　シュウジ","1945-11-30",28662,96.5,null,27,"小林　修爾",12467]
[null,null,null,null,null,null,null,null,null,null,null,null,null,null,null,null,null,null,null,null,null,null,null,null,null,null,null,null,null,null,null,null,null,null,null,null,null,null,null,null,null,null,null,null,null,null,null,null,"宮住",null,null,null,null,null,null,null,null,null,null,null,null,null,null,null,null,null,null,null,null,null,null,null,null,null,null,null,null,null,null,null,"小和瀬",22,"コワセ　ヤスアキ","1956-08-02",24764,"",null,87,"小和瀬　靖明",12467]
[null,null,null,null,null,null,null,null,null,null,null,null,null,null,null,null,null,null,null,null,null,null,null,null,null,null,null,null,null,null,null,null,null,null,null,null,null,null,null,null,null,null,null,null,null,null,null,null,null,null,null,null,null,null,null,null,null,null,null,null,null,null,null,null,null,null,null,null,null,null,null,null,null,null,null,null,null,null,null,null,"近藤静",23,"コンドウ　シズオ","1950-08-27",26931,"",null,64,"近藤　静雄",12467]
[null,null,null,null,null,null,null,null,null,null,null,null,null,null,null,null,null,null,null,null,null,null,null,null,null,null,null,null,null,null,null,null,null,null,null,null,null,null,null,null,null,null,null,null,null,null,null,null,null,null,null,null,null,null,null,null,null,null,null,null,null,null,null,null,null,null,null,null,null,null,null,null,null,null,null,null,null,null,null,null,"近藤裕",24,"コンドウ　ヒロユキ","1946-02-16",28584,85.5,null,25,"近藤　裕之",12467]
[null,null,null,null,null,null,null,null,null,null,null,null,null,null,null,null,null,null,null,null,null,null,null,null,null,null,null,null,null,null,null,null,null,null,null,null,null,null,null,null,null,null,null,null,null,null,null,null,null,null,null,null,null,null,null,null,null,null,null,null,null,null,null,null,null,null,null,null,null,null,null,null,null,null,null,null,null,null,null,null,"坂本",25,"サカモト　マコト","1940-09-23",30556,97.36363636363636,null,34,"坂本　眞",12469]
[null,null,null,null,null,null,null,null,null,null,null,null,null,null,null,null,null,null,null,null,null,null,null,null,null,null,null,null,null,null,null,null,null,null,null,null,null,null,null,null,null,null,null,null,null,null,null,null,null,null,null,null,null,null,null,null,null,null,null,null,null,null,null,null,null,null,null,null,null,null,null,null,null,null,null,null,null,null,null,null,"佐藤清",26,"サトウ　キヨヒト","1953-01-15",26059,86.75,null,54,"佐藤　清仁",12469]
[null,null,null,null,null,null,null,null,null,null,null,null,null,null,null,null,null,null,null,null,null,null,null,null,null,null,null,null,null,null,null,null,null,null,null,null,null,null,null,null,null,null,null,null,null,null,null,null,null,null,null,null,null,null,null,null,null,null,null,null,null,null,null,null,null,null,null,null,null,null,null,null,null,null,null,null,null,null,null,null,"里中",27,"サトナカ　コウイチロウ","1951-02-05",26769,101.71428571428571,null,75,"里中　孝一郎",12469]
[null,null,null,null,null,null,null,null,null,null,null,null,null,null,null,null,null,null,null,null,null,null,null,null,null,null,null,null,null,null,null,null,null,null,null,null,null,null,null,null,null,null,null,null,null,null,null,null,null,null,null,null,null,null,null,null,null,null,null,null,null,null,null,null,null,null,null,null,null,null,null,null,null,null,null,null,null,null,null,null,"佐土原",28,"サドハラ　ヒロシ","1951-03-01",26745,86.111111111111114,null,72,"佐土原　寛",12469]
[null,null,null,null,null,null,null,null,null,null,null,null,null,null,null,null,null,null,null,null,null,null,null,null,null,null,null,null,null,null,null,null,null,null,null,null,null,null,null,null,null,null,null,null,null,null,null,null,null,null,null,null,null,null,null,null,null,null,null,null,null,null,null,null,null,null,null,null,null,null,null,null,null,null,null,null,null,null,null,null,"塩崎",29,"シオザキ　ヨシロウ","1955-06-28",25165,96.166666666666671,null,50,"塩崎　芳郎",12471]
[null,null,null,null,null,null,null,null,null,null,null,null,null,null,null,null,null,null,null,null,null,null,null,null,null,null,null,null,null,null,null,null,null,null,null,null,null,null,null,null,null,null,null,null,null,null,null,null,null,null,null,null,null,null,null,null,null,null,null,null,null,null,null,null,null,null,null,null,null,null,null,null,null,null,null,null,null,null,null,null,"鈴木",30,"スズキ　マサル","1946-05-19",28492,85.07692307692308,null,47,"鈴木 優",12473]
[null,null,null,null,null,null,null,null,null,null,null,null,null,null,null,null,null,null,null,null,null,null,null,null,null,null,null,null,null,null,null,null,null,null,null,null,null,null,null,null,null,null,null,null,null,null,null,null,null,null,null,null,null,null,null,null,null,null,null,null,null,null,null,null,null,null,null,null,null,null,null,null,null,null,null,null,null,null,null,null,"高木",31,"タカギ　ヨシヒロ","1953-01-02",26072,91.666666666666671,null,52,"高木 芳廣",12479]
[null,null,null,null,null,null,null,null,null,null,null,null,null,null,null,null,null,null,null,null,null,null,null,null,null,null,null,null,null,null,null,null,null,null,null,null,null,null,null,null,null,null,null,null,null,null,null,null,null,null,null,null,null,null,null,null,null,null,null,null,null,null,null,null,null,null,null,null,null,null,null,null,null,null,null,null,null,null,null,null,"田中",32,"タナカ　コウスケ","1950-10-13",26884,79.666666666666671,null,58,"田中　光助",12479]
[null,null,null,null,null,null,null,null,null,null,null,null,null,null,null,null,null,null,null,null,null,null,null,null,null,null,null,null,null,null,null,null,null,null,null,null,null,null,null,null,null,null,null,null,null,null,null,null,null,null,null,null,null,null,null,null,null,null,null,null,null,null,null,null,null,null,null,null,null,null,null,null,null,null,null,null,null,null,null,null,"塚越",33,"ツカゴシ　ヨシナリ","1946-02-05",28595,105.5,null,84,"塚越　良也",12484]
[null,null,null,null,null,null,null,null,null,null,null,null,null,null,null,null,null,null,null,null,null,null,null,null,null,null,null,null,null,null,null,null,null,null,null,null,null,null,null,null,null,null,null,null,null,null,null,null,null,null,null,null,null,null,null,null,null,null,null,null,null,null,null,null,null,null,null,null,null,null,null,null,null,null,null,null,null,null,null,null,"次橋",34,"ツギハシ　ハジメ","1946-11-12",28315,85.272727272727266,null,61,"次橋　一",12484]
[null,null,null,null,null,null,null,null,null,null,null,null,null,null,null,null,null,null,null,null,null,null,null,null,null,null,null,null,null,null,null,null,null,null,null,null,null,null,null,null,null,null,null,null,null,null,null,null,null,null,null,null,null,null,null,null,null,null,null,null,null,null,null,null,null,null,null,null,null,null,null,null,null,null,null,null,null,null,null,null,"坪原",35,"ツボハラ　ヨシノリ","1948-09-11",27646,93.36363636363636,null,26,"坪原　功典",12484]
[null,null,null,null,null,null,null,null,null,null,null,null,null,null,null,null,null,null,null,null,null,null,null,null,null,null,null,null,null,null,null,null,null,null,null,null,null,null,null,null,null,null,null,null,null,null,null,null,null,null,null,null,null,null,null,null,null,null,null,null,null,null,null,null,null,null,null,null,null,null,null,null,null,null,null,null,null,null,null,null,"豊島",36,"トヨシマ　ヨシミ",null,45433,88.461538461538467,null,85,"豊島　好美",12488]
[null,null,null,null,null,null,null,null,null,null,null,null,null,null,null,null,null,null,null,null,null,null,null,null,null,null,null,null,null,null,null,null,null,null,null,null,null,null,null,null,null,null,null,null,null,null,null,null,null,null,null,null,null,null,null,null,null,null,null,null,null,null,null,null,null,null,null,null,null,null,null,null,null,null,null,null,null,null,null,null,"中川",37,"ナカガワ　エイジ","1949-09-29",27263,91,null,41,"中川　英二",12490]
[null,null,null,null,null,null,null,null,null,null,null,null,null,null,null,null,null,null,null,null,null,null,null,null,null,null,null,null,null,null,null,null,null,null,null,null,null,null,null,null,null,null,null,null,null,null,null,null,null,null,null,null,null,null,null,null,null,null,null,null,null,null,null,null,null,null,null,null,null,null,null,null,null,null,null,null,null,null,null,null,"中山",38,"ナカヤマ　マサミツ","1948-08-29",27659,92.142857142857139,null,36,"中山　正光",12490]
[null,null,null,null,null,null,null,null,null,null,null,null,null,null,null,null,null,null,null,null,null,null,null,null,null,null,null,null,null,null,null,null,null,null,null,null,null,null,null,null,null,null,null,null,null,null,null,null,null,null,null,null,null,null,null,null,null,null,null,null,null,null,null,null,null,null,null,null,null,null,null,null,null,null,null,null,null,null,null,null,"林",39,"ハヤシ　ショウジ","1946-09-28",28360,107.83333333333333,null,38,"林　昭二",12495]
[null,null,null,null,null,null,null,null,null,null,null,null,null,null,null,null,null,null,null,null,null,null,null,null,null,null,null,null,null,null,null,null,null,null,null,null,null,null,null,null,null,null,null,null,null,null,null,null,"組合せ表",null,null,null,null,null,null,null,null,null,null,null,null,null,null,null,null,null,null,null,null,null,null,null,null,null,null,null,null,null,null,null,"福山",40,"フクヤマ　マサタカ","1942-01-22",30070,98.5,null,67,"福山 正隆",12501]
[null,null,null,null,null,null,null,null,null,null,null,null,null,null,null,null,null,null,null,null,null,null,null,null,null,null,null,null,null,null,null,null,null,null,null,null,null,null,null,null,null,null,null,null,null,null,null,null,null,null,null,null,null,null,null,null,null,null,null,null,null,null,null,null,null,null,null,null,null,null,null,null,null,null,null,null,null,null,null,null,"藤田",41,"フジタ　マコト","1952-10-27",26139,95.7,null,71,"藤田　真",12501]
[null,null,null,null,null,null,null,null,null,null,null,null,null,null,null,null,null,null,null,null,null,null,null,null,null,null,null,null,null,null,null,null,null,null,null,null,null,null,null,null,null,null,null,null,null,null,null,null,null,null,null,null,null,null,null,null,null,null,null,null,null,null,null,null,null,null,null,null,null,null,null,null,null,null,null,null,null,null,null,null,"古海",42,"フルミ　マサトモ","1947-09-08",28015,98.25,null,51,"古海 正友",12501]
[null,null,null,null,null,null,null,null,null,null,null,null,null,null,null,null,null,null,null,null,null,null,null,null,null,null,null,null,null,null,null,null,null,null,null,null,null,null,null,null,null,null,null,null,null,null,null,null,null,null,null,null,null,null,null,null,null,null,null,null,null,null,null,null,null,null,null,null,null,null,null,null,null,null,null,null,null,null,null,null,"松岡",43,"マツオカ　カズヒコ","1954-08-01",25496,"",null,80,"松岡　一彦",12510]
[null,null,null,null,null,null,null,null,null,null,null,null,null,null,null,null,null,null,null,null,null,null,null,null,null,null,null,null,null,null,null,null,null,null,null,null,null,null,null,null,null,null,null,null,null,null,null,null,null,null,null,null,null,null,null,null,null,null,null,null,null,null,null,null,null,null,null,null,null,null,null,null,null,null,null,null,null,null,null,null,"豆田",44,"マメダ　ジュンイチ","1948-11-24",27572,98.666666666666671,null,65,"豆田　順一",12510]
[null,null,null,null,null,null,null,null,null,null,null,null,null,null,null,null,null,null,null,null,null,null,null,null,null,null,null,null,null,null,null,null,null,null,null,null,null,null,null,null,null,null,null,null,null,null,null,null,null,null,null,null,null,null,null,null,null,null,null,null,null,null,null,null,null,null,null,null,null,null,null,null,null,null,null,null,null,null,null,null,"三井",45,"ミツイ　チヒロ","1939-07-28",30979,101,null,3,"三井　千大",12511]
[null,null,null,null,null,null,null,null,null,null,null,null,null,null,null,null,null,null,null,null,null,null,null,null,null,null,null,null,null,null,null,null,null,null,null,null,null,null,null,null,null,null,null,null,null,null,null,null,null,null,null,null,null,null,null,null,null,"BF161<=8で自動入力判断",null,null,null,null,null,null,null,null,"playersnumで計算された出欠者数",null,null,null,null,null,null,null,null,null,null,null,null,null,"南村",46,"ミナミムラ　エイジ　","1951-03-10",26736,88.25,null,53,"南村　英二",12511]
[null,null,null,null,null,null,null,null,null,null,null,null,null,null,null,null,null,null,null,null,null,null,null,null,null,null,null,null,null,null,null,null,null,null,null,null,null,null,null,null,null,null,null,null,null,null,null,null,null,null,null,null,null,null,null,null,null,"kumiawase/mode変数",null,null,null,null,null,null,null,null,"出席者数",16,null,null,null,null,null,null,null,null,null,null,null,null,"宮田",47,"ミヤタ　ユウジ","1956-03-01",24918,103.6,null,82,"宮田 祐二",12511]
[null,null,null,null,null,null,null,null,null,null,null,null,null,null,null,null,null,null,null,null,null,null,null,null,null,null,null,null,null,null,null,null,null,null,null,null,null,null,null,null,null,null,null,null,null,null,null,null,null,null,null,null,null,null,null,null,null,"BF161=100：自動手動両方へ書き込む",null,null,null,null,null,null,null,null,"欠席者数",11,null,null,null,null,null,null,null,null,null,null,null,null,"村上",48,"ムラカミ　アキノリ","1943-03-25",29643,92,null,55,"村上　明徳",12512]
[null,null,null,null,null,null,null,null,null,null,null,null,null,null,null,null,null,null,null,null,null,null,null,null,null,null,null,null,null,null,null,null,null,null,null,null,null,null,null,null,null,null,null,null,null,null,null,null,null,null,null,null,null,"初期化領域",null,null,null,"BF161=0:自動ﾓｰﾄﾞだがkumiawaseは動作しない(ｽﾙｰ)",null,null,null,null,null,null,null,null,"未回答",30,null,null,null,null,null,null,null,null,null,null,null,null,"森",49,"モリ　タケト","1954-02-16",25662,109.125,null,81,"森　健人",12514]
[null,null,null,null,null,null,null,null,null,null,null,null,null,null,null,null,null,null,null,null,null,null,null,null,null,null,null,null,null,null,null,null,null,null,null,null,null,null,null,null,null,null,null,null,null,null,null,null,null,null,null,null,null,null,null,null,null,"五十音順：１",null,null,null,null,null,null,null,null,null,null,null,null,null,null,null,null,null,null,null,null,null,null,"山中",50,"ヤマナカ　コウジ","1948-03-11",27830,96.6,null,40,"山中　廣次",12516]
[null,null,null,null,null,null,null,null,null,null,null,null,null,null,null,null,null,null,null,null,null,null,null,null,null,null,null,null,null,null,null,null,null,null,null,null,null,null,null,null,null,null,null,null,null,null,null,null,null,null,null,null,null,null,null,null,null,"逆五十音：２",null,null,null,null,"組合せ表人数",null,null,null,null,null,null,null,null,null,null,null,null,null,null,null,null,null,"湯浅",51,"ユアサ　ヒサオ","1943-12-08",29385,92.375,null,29,"湯浅　恒男",12518]
[null,null,null,null,null,null,null,null,null,null,null,null,null,null,null,null,null,null,null,null,null,null,null,null,null,null,null,null,null,null,null,null,null,null,null,null,null,null,null,null,null,null,null,null,null,null,null,null,null,null,null,null,null,null,null,null,null,"先着順：３",null,null,"manualinput","autoinput",null,null,null,null,null,null,null,null,null,null,null,null,null,null,null,null,null,null,"横山",52,"ヨコヤマ　ヒロシ","1942-01-06",30086,91,null,24,"横山　洋　",12520]
[null,null,null,null,null,null,null,null,null,null,null,null,null,null,null,null,null,null,null,null,null,null,null,null,null,null,null,null,null,null,null,null,null,null,null,null,null,null,null,null,null,null,null,null,null,null,null,null,null,null,null,null,null,null,null,null,null,"逆先着：４",null,null,null,null,"自動モード","ﾏﾆｭｱﾙﾓｰﾄﾞ",null,null,null,null,null,null,null,null,null,null,null,null,null,null,null,null,"吉澤",53,"ヨシザワ　タカシ","1943-04-02",29635,80.84615384615384,null,12,"吉澤　隆",12520]
[null,null,null,null,null,null,null,null,null,null,null,null,null,null,null,null,null,null,null,null,null,null,null,null,null,null,null,null,null,null,null,null,null,null,null,null,null,null,null,null,null,null,null,null,null,null,null,null,null,null,null,null,null,null,null,null,null,"五十音順縦：5","乱数化：1","年齢順：１0","新規：１","新規：１","ある:1",null,null,null,null,null,null,null,null,null,null,null,null,null,null,null,null,null,"吉田",54,"ヨシダ　カズオ","1943-08-07",29508,79,null,9,"吉田　一雄",12520]
[null,null,null,null,null,null,null,null,null,null,null,null,null,null,null,null,null,null,null,null,null,null,null,null,null,null,null,null,null,null,null,null,null,null,null,null,null,null,null,null,null,null,null,null,null,null,null,null,null,null,null,null,null,null,null,null,null,"逆五十音縦：6","MINI乱数：２","年齢順なし：11","前回：２","前回：２",null,null,null,null,null,null,null,null,null,null,null,null,null,null,null,null,null,null,"渡辺昭",55,"ワタナベ アキフミ","1948-08-14",27674,87.125,null,39,"渡辺　昭文",12527]
[null,null,null,null,null,null,null,null,null,null,null,null,null,null,null,null,null,null,null,null,null,null,null,null,null,null,null,null,null,null,null,null,null,null,null,null,null,null,null,null,null,null,null,null,null,null,null,null,null,null,null,null,null,null,null,null,null,"先着順縦：7","乱数なし:0?",null,null,null,null,null,null,null,null,null,null,null,null,null,null,null,null,null,null,null,null,null,"渡辺政",56,"ワタナベ　マサアキ","1952-10-24",26142,"",null,73,"渡辺　政明",12527]
[null,null,null,null,null,null,null,null,null,null,null,null,null,null,null,null,null,null,null,null,null,null,null,null,null,null,null,null,null,null,null,null,null,null,null,null,null,null,null,null,null,null,null,null,null,null,null,null,null,null,51,52,53,54,55,56,null,"逆先着縦：8",null,null,null,null,null,null,null,null,null,null,null,null,null,null,null,null,null,null,null,null,null,null,"村中",57,"ムラナカ　ヤスオ","1956-07-24",null,"",null,66,"村中　保夫",12512]
[null,null,null,null,null,null,null,null,null,null,null,null,null,null,null,null,null,null,null,null,null,null,null,null,null,null,null,null,null,null,null,null,null,null,null,null,null,null,null,null,null,null,null,null,null,null,null,null,null,null,null,null,null,null,null,null,null,"自動何もしない：0",null,null,null,null,null,null,null,null,null,null,null,null,null,null,null,null,null,null,null,null,null,null,"奈良",58,"ナラ　タカシ","1956-07-24",null,"",null,null,"奈良　孝",12490]
[null,null,null,null,null,null,null,null,null,null,null,null,null,null,null,null,null,null,null,null,null,null,null,null,null,null,null,null,null,null,null,null,null,null,null,null,null,null,null,null,null,null,null,null,null,null,null,null,null,null,"inputシートのprivate SUBで読み出したデータをここで保存",null,null,null,null,null,null,null,null,null,null,null,null,null,null,null,null,null,null,null,null,null,null,null,null,null,null,null,null,null,null,null,null,null,null,"",null,null,null,20000]
[null,null,null,null,null,null,null,null,null,null,null,null,null,null,null,null,null,null,null,null,null,null,null,null,null,null,null,null,null,null,null,null,null,null,null,null,null,null,null,null,null,null,null,null,null,null,null,null,null,null,null,null,null,null,null,null,null,"直接入力：10",null,null,null,null,null,null,null,null,null,null,null,null,null,null,null,null,null,null,null,null,null,null,null,null,null,null,null,"",null,null,null,20000]
[null,null,null,null,null,null,null,null,null,null,null,null,null,null,null,null,null,null,null,null,null,null,null,null,null,null,null,null,null,null,null,null,null,null,null,null,null,null,null,null,null,null,null,null,null,null,null,null,null,null,null,null,null,null,null,null,null,100,1,10,2,2,{"$f":"COUNTA(BQ254:BT265)","v":0},{"$f":"COUNTA(BQ278:BT289)","v":0},null,null,null,null,null,null,null,null,null,null,null,null,null,null,null,null,null,null,null,null,null,"",null,null,null,20000]
[null,null,null,null,null,null,null,null,null,null,null,null,null,null,null,null,null,null,null,null,null,null,null,null,null,null,null,null,null,null,null,null,null,null,null,null,null,null,null,null,null,null,null,null,null,null,null,null,null,null,null,null,null,null,null,null,null,null,null,null,null,null,null,null,null,null,null,null,null,null,null,null,null,null,null,null,null,null,null,null,null,null,null,null,null,"",null,null,null,20000]
[null,null,null,null,null,null,null,null,null,null,null,null,null,null,null,null,null,null,null,null,null,null,null,null,null,null,null,null,null,null,null,null,null,null,null,null,null,null,null,null,null,null,null,null,null,null,null,null,null,null,null,null,null,null,null,"直接書出し",null,0,null,null,null,null,null,null,null,null,null,null,null,null,null,null,null,null,null,null,null,null,null,null,null,63,null,null,100,"",null,null,"山田 ",20000]
[null,null,null,null,null,null,null,null,null,null,null,null,null,null,null,null,null,null,null,null,null,null,null,null,null,null,null,null,null,null,null,null,null,null,null,null,null,null,null,null,null,null,null,null,null,null,null,null,null,null,null,null,"kumiawse()でmnbr00に収納",null,null,null,null,null,null,null,null,null,null,null,null,null,null,null,null,null,null,null,null,null,null,null,null,null,null,null,null,64,null,null,101,"",null,null,"中島 ",20000]
[null,null,null,null,null,null,null,null,null,null,null,null,null,null,null,null,null,null,null,null,null,null,null,null,null,null,null,null,null,null,null,null,null,null,null,null,null,null,null,null,null,null,null,null,null,null,null,null,null,null,null,null,null,null,null,null,null,null,null,null,"組合せ表から出席者を書き出す。このリストを基に乱数化し再度組合せ表へ書き込む",null,null,null,null,null,null,null,null,null,null,null,null,null,null,null,null,null,null,"No65：scoreshhet上で並び替えるときの便宜上BLKにしている",null,65,null,null,102,"",null,null,"小川 ",20000]
[null,null,null,null,null,null,null,null,null,null,null,null,null,null,null,null,null,null,null,null,null,null,null,null,null,null,null,null,null,null,null,null,null,null,null,null,null,null,null,null,null,null,null,null,null,null,null,null,null,null,"kumiawaseで作成",null,"sheet1で作成","kumiawaseで作成",null,null,null,null,null,null,"組合せ表のBLK位置を飛ばして書き込み空欄位置を維持する",null,null,null,null,null,null,null,null,null,null,null,null,null,null,null,null,null,null,null,null,null,null,null,null,null,null,null,null,"BLANKは２００００"]
[null,null,null,null,null,null,null,null,null,null,null,null,null,null,null,null,null,null,null,null,null,null,null,null,null,null,null,null,null,null,null,null,null,null,null,null,null,null,null,null,null,null,null,null,null,null,null,null,null,null,"mnbr1",null,null,"mnbr0",null,null,null,"kumiawaseで使用",null,null,"randamize",null,null,null,null,null,null,null,null,null,null,null,null,null,null,"minirandamize"]
[null,null,null,null,null,null,null,null,null,null,null,null,null,null,null,null,null,null,null,null,null,null,null,null,null,null,null,null,null,null,null,null,null,null,null,null,null,null,null,null,null,null,null,null,null,null,null,null,null,null,"Doubleclick\n組合せ表から読み出し\n（五十音順）\n",null,"Doubleclick\n直接読出し\n(sheet1)\n（記入順）\n","(BA171)列の\nBLK,同名抜き","oneclick時の出欠表ｱﾄﾞﾚｽ保存\n","Rightclickで\n(sheet1)組合せ表\nから書出し",null,"matrixarray入力",null,null,"AB61列に対し乱数発生\n昇順に並べ替えM",null,null,"組合せ表を縦行列化\n",null,"\nWORKAREA\nexcelの\n表上で計算\nBN171-218",null,"組合せ表の読み取り\n組合せ表上での追加、削除を盛り込んで乱数化",null,null,null,null,null,null,null,"AB61列に対し乱数発生\n昇順に並べ替えM",null,null,"組合せ表を縦行列化\n",null,"↓excelの表上で計算",null,"組合せ表の読み取り\n組合せ表上での追加、削除を盛り込んで乱数化"]
[null,null,null,null,null,null,null,null,null,null,null,null,null,null,null,null,null,null,null,null,null,null,null,null,null,null,null,null,null,null,null,null,null,null,null,null,null,null,null,null,null,null,null,null,null,null,null,null,null,null,"空詰め",null,"出席",null,null,null,"players=",{"$f":"MAX(AY220,BB220)","v":0},null,null,null,null,null,7,"mbr1",null,null,"AA61列で縦行列化、AB6１列で空欄（BLK)除く",null,null,null,null,null,null,null,null,null,null,null,"mbr1",null,null,"AA61列で縦行列化、AB6１列で空欄（BLK)除く"]
[null,null,null,null,null,null,null,null,null,null,null,null,null,null,null,null,null,1,2,null,null,null,null,null,null,null,null,null,null,null,null,null,null,null,null,null,null,null,null,null,null,null,null,null,null,null,null,null,null,null,null,null,null,null,null,null,null,null,null,null,"乱数のOUTPUT",null,null,"mbr0(mmbr0の縦行列)","mbr0のBLK除き",null,null,"乱数化前の組合せmmbr0",null,null,null,null,null,null,null,"乱数のOUTPUT",null,null,"mbr0(mmbr0の縦行列)","mbr0のBLK除き",null,null,"乱数化前の組合せmmbr0"]
[null,null,null,null,null,null,null,null,null,null,null,null,null,null,null,null,null,null,null,null,null,null,null,null,null,null,null,null,null,null,null,null,null,null,null,null,null,null,null,null,null,null,null,null,null,null,null,null,null,null,null,null,null,null,20]
[null,null,null,null,null,null,null,null,null,null,null,null,null,null,null,null,null,null,null,null,"BLK",null,null,null,null,null,null,null,null,null,null,null,null,null,null,null,null,null,null,null,null,null,null,null,null,null,null,null,null,null,null,null,null,null,7]
[null,null,null,null,null,null,null,null,null,null,null,null,null,null,null,null,null,"BLK","BLK","BLK","BLK"]
[null,null,null,null,null,null,null,null,null,null,null,null,null,null,null,null,null,"BLK","BLK","BLK","BLK"]
[null,null,null,null,null,null,null,null,null,null,null,null,null,null,null,null,null,"BLK","BLK","BLK","BLK"]
[null,null,null,null,null,null,null,null,null,null,null,null,null,null,null,null,null,"BLK","BLK","BLK","BLK"]
[null,null,null,null,null,null,null,null,null,null,null,null,null,null,null,null,null,"BLK","BLK","BLK","BLK"]
[null,null,null,null,null,null,null,null,null,null,null,null,null,null,null,null,null,"BLK","BLK","BLK","BLK"]
[null,null,null,null,null,null,null,null,null,null,null,null,null,null,null,null,null,"BLK","BLK","BLK","BLK"]
[null,null,null,null,null,null,null,null,null,null,null,null,null,null,null,null,null,"BLK","BLK","BLK","BLK"]
[null,null,null,null,null,null,null,null,null,null,null,null,null,null,null,null,null,"BLK","BLK","BLK","BLK"]
[null,null,null,null,null,null,null,null,null,null,null,null,null,null,null,null,null,"BLK","BLK","BLK","BLK"]
[]
[]
[null,null,null,null,null,null,null,null,null,null,null,null,null,null,null,null,null,2,null,null,null,null,null,null,null,null,null,null,null,null,null,null,null,null,null,null,null,null,null,null,null,null,null,null,null,null,null,null,null,null,null,null,null,null,null,null,null,null,null,null,null,null,null,null,null,null,null,"乱数後の組合せmmbr1"]
[null,null,null,null,null,null,null,null,null,null,null,null,null,null,null,null,null,3]
[]
[]
[]
[]
[]
[]
[]
[]
[]
[]
[]
[]
[]
[]
[]
[]
[]
[]
[]
[]
[]
[]
[]
[]
[]
[]
[]
[]
[]
[]
[]
[]
[null,null,null,null,null,null,null,null,null,null,null,null,null,null,null,null,null,null,null,null,null,null,null,null,null,null,null,null,null,null,null,null,null,null,null,null,null,null,null,null,null,null,null,null,null,null,null,null,null,null,null,null,null,null,null,"max48"]
[null,null,null,null,null,null,null,null,null,null,null,null,null,null,null,null,null,null,null,null,null,null,null,null,null,null,null,null,null,null,null,null,null,null,null,null,null,null,null,null,null,null,null,null,null,null,null,null,null,"各列の人数➡",{"$f":"48-COUNTBLANK(AY171:AY218)","v":0},null,null,{"$f":"48-COUNTBLANK(BB171:BB218)","v":0},null,{"$f":"48-COUNTBLANK(BD171:BD218)","v":0}]
[null,null,null,null,null,null,null,null,null,null,null,null,null,null,null,null,null,null,null,null,null,null,null,null,null,null,null,null,null,null,null,null,null,null,null,null,null,null,null,null,null,null,null,null,null,null,null,null,null,"BF169でMAX選択"]
[]
[]
[]
[]
[]
[]
[]
[]
[]
[]
[]
[]
[]
[]
[]
[]
[]
[]
[]
[]
[]
[]
[]
[]
[]
[]
[]
[]
[]
[null,null,null,null,null,null,null,null,null,null,null,null,null,null,null,null,null,null,null,null,null,null,null,null,null,null,null,null,null,null,null,null,null,null,null,null,null,null,null,null,null,null,null,null,null,null,null,null,null,null,null,null,null,null,null,null,null,null,null,"出欠表のﾏｸﾛによるコピー(double clickで保存)"]
[]
[null,null,null,null,null,null,null,null,null,null,null,null,null,null,null,null,null,null,null,null,null,null,null,null,null,null,null,null,null,null,null,null,null,null,null,null,null,null,null,null,null,null,null,null,null,null,null,null,null,null,null,null,null,null,null,null,null,null,null,"ｱ行","ｶ行","ｻ・ﾀ行","ﾅ・ﾊ行","ﾏ‥行",null,null,"OUT/IN","ｽﾀｰﾄ時刻",1,2,3,4]
[null,null,null,null,null,null,null,null,null,null,null,null,null,null,null,null,null,null,null,null,null,null,null,null,null,null,null,null,null,null,null,null,null,null,null,null,null,null,null,null,null,null,null,null,null,null,null,null,null,null,null,null,null,null,null,null,null,null,null,"安藤","笠原","坂本","中川","松岡"]
[null,null,null,null,null,null,null,null,null,null,null,null,null,null,null,null,null,null,null,null,null,null,null,null,null,null,null,null,null,null,null,null,null,null,null,null,null,null,null,null,null,null,null,null,null,null,null,null,null,null,null,null,null,null,null,null,null,null,null,"飯田","勝田","佐藤清","中山","豆田"]
[null,null,null,null,null,null,null,null,null,null,null,null,null,null,null,null,null,null,null,null,null,null,null,null,null,null,null,null,null,null,null,null,null,null,null,null,null,null,null,null,null,null,null,null,null,null,null,null,null,null,null,null,null,null,null,null,null,null,null,"五十嵐","神崎","里中","林","三井"]
[null,null,null,null,null,null,null,null,null,null,null,null,null,null,null,null,null,null,null,null,null,null,null,null,null,null,null,null,null,null,null,null,null,null,null,null,null,null,null,null,null,null,null,null,null,null,null,null,null,null,null,null,null,null,null,null,null,null,null,"市来","神林","佐土原","福山","南村"]
[null,null,null,null,null,null,null,null,null,null,null,null,null,null,null,null,null,null,null,null,null,null,null,null,null,null,null,null,null,null,null,null,null,null,null,null,null,null,null,null,null,null,null,null,null,null,null,null,null,null,null,null,null,null,null,null,null,null,null,"伊藤","君島","塩崎","藤田","宮田"]
[null,null,null,null,null,null,null,null,null,null,null,null,null,null,null,null,null,null,null,null,null,null,null,null,null,null,null,null,null,null,null,null,null,null,null,null,null,null,null,null,null,null,null,null,null,null,null,null,null,null,null,null,null,null,null,null,null,null,null,"上田","郷間","鈴木","古海","村上"]
[null,null,null,null,null,null,null,null,null,null,null,null,null,null,null,null,null,null,null,null,null,null,null,null,null,null,null,null,null,null,null,null,null,null,null,null,null,null,null,null,null,null,null,null,null,null,null,null,null,null,null,null,null,null,null,null,null,null,null,"大塩","小林邦","高木","奈良","森"]
[null,null,null,null,null,null,null,null,null,null,null,null,null,null,null,null,null,null,null,null,null,null,null,null,null,null,null,null,null,null,null,null,null,null,null,null,null,null,null,null,null,null,null,null,null,null,null,null,null,null,null,null,null,null,null,null,null,null,null,"大橋","小林修","田中",null,"山中"]
[null,null,null,null,null,null,null,null,null,null,null,null,null,null,null,null,null,null,null,null,null,null,null,null,null,null,null,null,null,null,null,null,null,null,null,null,null,null,null,null,null,null,null,null,null,null,null,null,null,null,null,null,null,null,null,null,null,null,null,"岡本","小和瀬","塚越",null,"湯浅"]
[null,null,null,null,null,null,null,null,null,null,null,null,null,null,null,null,null,null,null,null,null,null,null,null,null,null,null,null,null,null,null,null,null,null,null,null,null,null,null,null,null,null,null,null,null,null,null,null,null,null,null,null,null,null,null,null,null,null,null,"興津","近藤静","次橋",null,"横山"]
[null,null,null,null,null,null,null,null,null,null,null,null,null,null,null,null,null,null,null,null,null,null,null,null,null,null,null,null,null,null,null,null,null,null,null,null,null,null,null,null,null,null,null,null,null,null,null,null,null,null,null,null,null,null,null,null,null,null,null,"奥原","近藤裕","坪原",null,"吉澤"]
[null,null,null,null,null,null,null,null,null,null,null,null,null,null,null,null,null,null,null,null,null,null,null,null,null,null,null,null,null,null,null,null,null,null,null,null,null,null,null,null,null,null,null,null,null,null,null,null,null,null,null,null,null,null,null,null,null,null,null,"小倉",null,"豊島",null,"吉田"]
[null,null,null,null,null,null,null,null,null,null,null,null,null,null,null,null,null,null,null,null,null,null,null,null,null,null,null,null,null,null,null,null,null,null,null,null,null,null,null,null,null,null,null,null,null,null,null,null,null,null,null,null,null,null,null,null,null,null,null,"小野山",null,null,null,"渡辺昭"]
[null,null,null,null,null,null,null,null,null,null,null,null,null,null,null,null,null,null,null,null,null,null,null,null,null,null,null,null,null,null,null,null,null,null,null,null,null,null,null,null,null,null,null,null,null,null,null,null,null,null,null,null,null,null,null,null,null,null,null,null,null,null,null,"渡辺政"]
[null,null,null,null,null,null,null,null,null,null,null,null,null,null,null,null,null,null,null,null,null,null,null,null,null,null,null,null,null,null,null,null,null,null,null,null,null,null,null,null,null,null,null,null,null,null,null,null,null,null,null,null,null,null,null,null,null,null,null,null,null,null,null,"村中"]
[]
[null,null,null,null,null,null,null,null,null,null,null,null,null,null,null,null,null,null,null,null,null,null,null,null,null,null,null,null,null,null,null,null,null,null,null,null,null,null,null,null,null,null,null,null,null,null,null,null,null,null,null,null,null,null,null,null,null,null,null,"出欠人数","出席(橙)"]
[null,null,null,null,null,null,null,null,null,null,null,null,null,null,null,null,null,null,null,null,null,null,null,null,null,null,null,null,null,null,null,null,null,null,null,null,null,null,null,null,null,null,null,null,null,null,null,null,null,null,null,null,"max100",null,null,null,null,null,null,null,"欠席(青)"]
[null,null,null,null,null,null,null,null,null,null,null,null,null,null,null,null,null,null,null,null,null,null,null,null,null,null,null,null,null,null,null,null,null,null,null,null,null,null,null,null,null,null,null,null,null,null,null,null,null,null,null,null,null,null,null,null,null,null,null,null,"未回答(黒)"]
[]
[]
[]
[null,null,null,null,null,null,null,null,null,null,null,null,null,null,null,null,null,null,null,null,null,null,null,null,null,null,null,null,null,null,null,null,null,null,null,null,null,null,null,null,null,null,null,null,null,null,null,null,null,null,null,null,null,null,null,null,null,null,null,"手動入力"]
[null,null,null,null,null,null,null,null,null,null,null,null,null,null,null,null,null,null,null,null,null,null,null,null,null,null,null,null,null,null,null,null,null,null,null,null,null,null,null,null,null,null,null,null,null,null,null,null,null,null,null,null,null,null,null,null,null,null,null,"ｱ行","ｶ行","ｻ・ﾀ行","ﾅ・ﾊ行","ﾏ‥行",null,null,null,"ｽﾀｰﾄ時刻",1,2,3,4]
[null,null,null,null,null,null,null,null,null,null,null,null,null,null,null,null,null,null,null,null,null,null,null,null,null,null,null,null,null,null,null,null,null,null,null,null,null,null,null,null,null,null,null,null,null,null,null,null,null,null,null,null,null,null,null,null,null,null,null,"安藤","笠原","坂本","中川","松岡",null,null,"OUT 1組"]
[null,null,null,null,null,null,null,null,null,null,null,null,null,null,null,null,null,null,null,null,null,null,null,null,null,null,null,null,null,null,null,null,null,null,null,null,null,null,null,null,null,null,null,null,null,null,null,null,null,null,null,null,null,null,null,null,null,null,null,"飯田","勝田","佐藤清","中山","豆田",null,null,"OUT 2組"]
[null,null,null,null,null,null,null,null,null,null,null,null,null,null,null,null,null,null,null,null,null,null,null,null,null,null,null,null,null,null,null,null,null,null,null,null,null,null,null,null,null,null,null,null,null,null,null,null,null,null,null,null,null,null,null,null,null,null,null,"五十嵐","神崎","里中","林","三井",null,null,"OUT 3組"]
[null,null,null,null,null,null,null,null,null,null,null,null,null,null,null,null,null,null,null,null,null,null,null,null,null,null,null,null,null,null,null,null,null,null,null,null,null,null,null,null,null,null,null,null,null,null,null,null,null,null,null,null,null,null,null,null,null,null,null,"市来","神林","佐土原","福山","南村",null,null,"OUT 4組"]
[null,null,null,null,null,null,null,null,null,null,null,null,null,null,null,null,null,null,null,null,null,null,null,null,null,null,null,null,null,null,null,null,null,null,null,null,null,null,null,null,null,null,null,null,null,null,null,null,null,null,null,null,null,null,null,null,null,null,null,"伊藤","君島","塩崎","藤田","宮田",null,null,"OUT 5組"]
[null,null,null,null,null,null,null,null,null,null,null,null,null,null,null,null,null,null,null,null,null,null,null,null,null,null,null,null,null,null,null,null,null,null,null,null,null,null,null,null,null,null,null,null,null,null,null,null,null,null,null,null,null,null,null,null,null,null,null,"上田","郷間","鈴木","古海","村上",null,null,"OUT 6組"]
[null,null,null,null,null,null,null,null,null,null,null,null,null,null,null,null,null,null,null,null,null,null,null,null,null,null,null,null,null,null,null,null,null,null,null,null,null,null,null,null,null,null,null,null,null,null,null,null,null,null,null,null,null,null,null,null,null,null,null,"大塩","小林邦","高木","奈良","森",null,null,"IN 1組"]
[null,null,null,null,null,null,null,null,null,null,null,null,null,null,null,null,null,null,null,null,null,null,null,null,null,null,null,null,null,null,null,null,null,null,null,null,null,null,null,null,null,null,null,null,null,null,null,null,null,null,null,null,null,null,null,null,null,null,null,"大橋","小林修","田中",null,"山中",null,null,"IN 2組"]
[null,null,null,null,null,null,null,null,null,null,null,null,null,null,null,null,null,null,null,null,null,null,null,null,null,null,null,null,null,null,null,null,null,null,null,null,null,null,null,null,null,null,null,null,null,null,null,null,null,null,null,null,null,null,null,null,null,null,null,"岡本","小和瀬","塚越",null,"湯浅",null,null,"IN 3組"]
[null,null,null,null,null,null,null,null,null,null,null,null,null,null,null,null,null,null,null,null,null,null,null,null,null,null,null,null,null,null,null,null,null,null,null,null,null,null,null,null,null,null,null,null,null,null,null,null,null,null,null,null,null,null,null,null,null,null,null,"興津","近藤静","次橋",null,"横山",null,null,"IN 4組"]
[null,null,null,null,null,null,null,null,null,null,null,null,null,null,null,null,null,null,null,null,null,null,null,null,null,null,null,null,null,null,null,null,null,null,null,null,null,null,null,null,null,null,null,null,null,null,null,null,null,null,null,null,null,null,null,null,null,null,null,"奥原","近藤裕","坪原",null,"吉澤",null,null,"IN 5組"]
[null,null,null,null,null,null,null,null,null,null,null,null,null,null,null,null,null,null,null,null,null,null,null,null,null,null,null,null,null,null,null,null,null,null,null,null,null,null,null,null,null,null,null,null,null,null,null,null,null,null,null,null,null,null,null,null,null,null,null,"小倉",null,"豊島",null,"吉田",null,null,"IN 6組"]
[null,null,null,null,null,null,null,null,null,null,null,null,null,null,null,null,null,null,null,null,null,null,null,null,null,null,null,null,null,null,null,null,null,null,null,null,null,null,null,null,null,null,null,null,null,null,null,null,null,null,null,null,null,null,null,null,null,null,null,"小野山",null,null,null,"渡辺昭"]
[null,null,null,null,null,null,null,null,null,null,null,null,null,null,null,null,null,null,null,null,null,null,null,null,null,null,null,null,null,null,null,null,null,null,null,null,null,null,null,null,null,null,null,null,null,null,null,null,null,null,null,null,null,null,null,null,null,null,null,null,null,null,null,"渡辺政",null,null,"組名称はAU105-116からコピー"]
[null,null,null,null,null,null,null,null,null,null,null,null,null,null,null,null,null,null,null,null,null,null,null,null,null,null,null,null,null,null,null,null,null,null,null,null,null,null,null,null,null,null,null,null,null,null,null,null,null,null,null,null,null,null,null,null,null,null,null,null,null,null,null,"村中"]
[]
[null,null,null,null,null,null,null,null,null,null,null,null,null,null,null,null,null,null,null,null,null,null,null,null,null,null,null,null,null,null,null,null,null,null,null,null,null,null,null,null,null,null,null,null,null,null,null,null,null,null,null,null,null,null,null,null,null,null,null,"出欠人数","出席(橙)"]
[null,null,null,null,null,null,null,null,null,null,null,null,null,null,null,null,null,null,null,null,null,null,null,null,null,null,null,null,null,null,null,null,null,null,null,null,null,null,null,null,null,null,null,null,null,null,null,null,null,null,null,null,null,null,null,null,null,null,null,null,"欠席(青)"]
[null,null,null,null,null,null,null,null,null,null,null,null,null,null,null,null,null,null,null,null,null,null,null,null,null,null,null,null,null,null,null,null,null,null,null,null,null,null,null,null,null,null,null,null,null,null,null,null,null,null,null,null,null,null,null,null,null,null,null,null,"未回答(黒)"]

{"sheet":"組合せ表","index":1,"n_rows":161,"n_cols":60,"rows_kept":161,"cut":false,"hidden":false,"merged":[]}
[]
[]
[]
[]
[]
[]
[]
[]
[]
[null,null,null,"OUT/IN","ｽﾀｰﾄ時間"]
[]
[]
[]
[]
[]
[]
[]
[]
[]
[]
[]
[]
[]
[]
[]
[]
[]
[]
[]
[]
[]
[]
[]
[]
[]
[]
[]
[]
[]
[]
[]
[]
[]
[]
[]
[]
[]
[]
[]
[]
[]
[]
[]
[]
[]
[]
[]
[]
[]
[]
[]
[]
[]
[]
[]
[]
[]
[]
[]
[]
[]
[]
[]
[]
[]
[]
[]
[]
[]
[]
[]
[]
[]
[]
[]
[]
[]
[]
[]
[]
[]
[]
[]
[]
[]
[]
[]
[]
[]
[]
[]
[]
[]
[]
[]
[]
[]
[]
[]
[]
[]
[]
[]
[]
[]
[]
[]
[]
[]
[]
[]
[]
[]
[]
[]
[]
[]
[]
[]
[]
[]
[]
[]
[]
[]
[]
[]
[]
[]
[]
[]
[]
[]
[]
[]
[]
[]
[]
[]
[]
[]
[]
[]
[]
[]
[]
[]
[]
[]
[]
[null,null,null,null,null,null,null,null,null,null,null,null,null,null,null,null,null,null,null,null,null,null,null,null,null,null,null,null,null,null,null,null,null,null,null,null,null,null,null,null,null,null,null,null,null,null,null,null,null,null,null,null,null,null,null,null,null,3,0,11]

{"sheet":"クラブ組合せ表","index":2,"n_rows":161,"n_cols":60,"rows_kept":161,"cut":false,"hidden":false,"merged":[]}
[null,null,null,null,null,null,null,null,null,null,null,null,null,null,null,null,null,null,null,null,null,null,23,24,25,26,27,28,29,30,31,32,33,34,35,36,37,38,39,40,41,42,43,44,45,46,47,48,49,50,51,52,53]
[null,null,null,null,null,null,null,null,null,null,null,null,null,null,null,null,null,null,null,null,null,null,null,null,null,null,null,null,null,null,null,null,null,null,null,null,null,null,null,"matrixarray1","青嶋","五十嵐","井田","市来","out",null,"matrixarray3","青嶋","五十嵐","井田","市来"]
[null,null,null,null,null,null,null,null,null,null,null,null,null,null,null,null,null,null,null,null,null,null,null,null,null,null,null,null,null,null,null,null,null,null,null,null,null,null,null,"デバッグ用","上田","内田","大塩","奥原","in",null,"デバッグ用","小倉","小野山","勝田","神崎"]
[null,null,null,null,null,null,null,null,null,null,null,null,null,null,null,null,null,null,null,null,null,null,null,null,null,null,null,null,null,null,null,null,null,null,null,null,null,null,null,"内部配列","小倉","小野山","勝田","神崎","out",null,null,"佐土原","塩崎","鈴木","次橋"]
[null,null,null,null,null,null,null,null,null,null,null,null,null,null,null,null,null,null,null,null,null,null,null,null,"VBA出席者",null,null,null,null,null,null,null,null,null,null,null,null,null,null,null,"小林邦","小林修","近藤裕","坂本","in",null,null,"増澤","豆田","湯浅","吉岡"]
[null,null,null,null,null,null,null,null,null,null,null,null,null,null,null,null,null,null,null,null,null,null,null,null,null,null,"組合せ入力表のリンク先",null,null,null,null,null,null,null,null,null,null,null,null,null,"佐土原","塩崎","鈴木","次橋","out",null,null,"上田","内田","大塩","奥原"]
[null,null,null,null,null,null,null,null,null,null,null,null,null,null,null,null,null,null,null,null,null,null,null,null,"青嶋",null,1,2,3,4,null,null,"一列目参加",{"$f":"COUNTIF(#REF!,\"○\")","v":{"$error":"#REF!"}},null,null,null,null,null,null,"坪原","中川","中山","古海","in",null,null,"小林邦","小林修","近藤裕","坂本"]
[null,null,null,null,null,null,null,null,null,null,null,null,null,null,null,null,null,null,null,null,null,null,null,null,"五十嵐",null,17,6,7,8,null,null,"二列目参加",{"$f":"COUNTIF(#REF!,\"○\")","v":{"$error":"#REF!"}},null,null,null,null,null,null,"増澤","豆田","湯浅","吉岡","out",null,null,"坪原","中川","中山","古海"]
[null,null,null,null,null,null,null,null,null,null,null,null,null,null,null,null,null,null,null,null,null,null,null,null,"井田",null,null,null,null,null,null,null,"三列目参加",{"$f":"COUNTIF(#REF!,\"○\")","v":{"$error":"#REF!"}},null,null,null,null,null,null,"吉澤","吉田","渡辺","BLK","in",null,null,"吉澤","吉田","渡辺","BLK"]
[null,null,null,"OUT/IN","ｽﾀｰﾄ時間",null,null,null,null,null,null,null,null,null,null,null,null,null,null,null,null,null,null,null,"市来",null,null,null,null,null,null,null,"合計＝",{"$f":"SUM(AH7:AH9)","v":{"$error":"#REF!"}},null,null,null,null,null,null,"BLK","BLK","BLK","BLK","out"]
[null,null,null,null,null,null,null,null,null,null,null,null,null,null,null,null,null,null,null,null,null,null,null,null,"上田",null,null,null,null,null,null,null,null,null,null,"全体",null,null,null,null,"BLK","BLK","BLK","BLK","in"]
[null,null,null,null,null,null,null,null,null,null,null,null,null,null,null,null,null,null,null,null,null,null,null,null,"内田",null,null,null,null,null,null,null,"合計/４＝",{"$f":"AH10/4","v":{"$error":"#REF!"}},"→→→→","切り上げ",{"$f":"ROUNDUP(AH12,0)","v":{"$error":"#REF!"}},null,null,null,"BLK","BLK","BLK","BLK","out"]
[null,null,null,null,null,null,null,null,null,null,null,null,null,null,null,null,null,null,null,null,null,null,null,null,"大塩",null,null,null,null,null,null,null,"MOD(合計/4）＝",{"$f":"MOD(AH10,4)","v":{"$error":"#REF!"}},null,"OUT組数",{"$f":"ROUNDUP(AK12/2,0)","v":{"$error":"#REF!"}},null,null,null,"BLK","BLK","BLK","BLK","in"]
[null,null,null,null,null,null,null,null,null,null,null,null,null,null,null,null,null,null,null,null,null,null,null,null,"奥原",null,null,null,null,null,null,null,"MOD=3","3人組＊１",null,"IN組数",{"$f":"ROUNDDOWN(AK12/2,0)","v":{"$error":"#REF!"}}]
[null,null,null,null,null,null,null,null,null,null,null,null,null,null,null,null,null,null,null,null,null,null,null,null,"小倉",null,null,null,null,null,null,null,"MOD=2","3人組＊２"]
[null,null,null,null,null,null,null,null,null,null,null,null,null,null,null,null,null,null,null,null,null,null,null,null,"小野山",null,null,null,null,null,null,null,"MOD=1","3人組＊３",null,null,null,null,null,"matrixarray2",1,3,5,6,"out",null,"matrixarray4",1,3,5,6]
[null,null,null,null,null,null,null,null,null,null,null,null,null,null,null,null,null,null,null,null,null,null,null,null,"勝田",null,null,null,null,null,null,null,null,null,null,null,null,null,null,"表示用配列",8,9,10,13,"in",null,null,14,15,17,18]
[null,null,null,null,null,null,null,null,null,null,null,null,null,null,null,null,null,null,null,null,null,null,null,null,"神崎",null,null,null,null,null,null,null,null,null,null,null,null,null,null,"OUT/IN再配置",14,15,17,18,"out",null,null,28,29,30,33]
[null,null,null,null,null,null,null,null,null,null,null,null,null,null,null,null,null,null,null,null,null,null,null,null,"小林邦",null,null,null,null,null,null,null,null,null,null,null,null,null,null,null,21,22,24,25,"in",null,null,43,44,51,53]
[null,null,null,null,null,null,null,null,null,null,null,null,null,null,null,null,null,null,null,null,null,null,null,null,"小林修",null,null,null,null,null,null,null,null,null,null,null,null,null,null,null,28,29,30,33,"out",null,null,8,9,10,13]
[null,null,null,null,null,null,null,null,null,null,null,null,null,null,null,null,null,null,null,null,null,null,null,null,"近藤裕",null,null,null,null,null,null,null,null,null,null,null,null,null,null,null,34,35,36,42,"in",null,null,21,22,24,25]
[null,null,null,null,null,null,null,null,null,null,null,null,null,null,null,null,null,null,null,null,null,null,null,null,"坂本",null,null,null,null,null,null,null,null,null,null,null,null,null,null,null,43,44,51,53,"out",null,null,34,35,36,42]
[null,null,null,null,null,null,null,null,null,null,null,null,null,null,null,null,null,null,null,null,null,null,null,null,"塩崎",null,null,null,null,null,null,null,null,null,null,null,null,null,null,null,54,55,56,"BLK","in",null,null,54,55,56,"BLK"]
[null,null,null,null,null,null,null,null,null,null,null,null,null,null,null,null,null,null,null,null,null,null,null,null,"鈴木",null,null,null,null,null,null,null,null,null,null,null,null,null,null,null,"BLK","BLK","BLK","BLK","out"]
[null,null,null,null,null,null,null,null,null,null,null,null,null,null,null,null,null,null,null,null,null,null,null,null,"次橋",null,null,null,null,null,null,null,null,null,null,null,null,null,null,null,"BLK","BLK","BLK","BLK","in"]
[null,null,null,null,null,null,null,null,null,null,null,null,null,null,null,null,null,null,null,null,null,null,null,null,"坪原",null,null,null,null,null,null,null,null,null,null,null,null,null,null,null,"BLK","BLK","BLK","BLK","out"]
[null,null,null,null,null,null,null,null,null,null,null,null,null,null,null,null,null,null,null,null,null,null,null,null,"中川",null,null,null,null,null,null,null,null,null,null,null,null,null,null,null,"BLK","BLK","BLK","BLK","in"]
[null,null,null,null,null,null,null,null,null,null,null,null,null,null,null,null,null,null,null,null,null,null,null,null,"中山",null,null,"先着順　OUT1-IN1-OUT2"]
[null,null,null,null,null,null,null,null,null,null,null,null,null,null,null,null,null,null,null,null,null,null,null,null,"古海",null,null,"先着順　OUT1-OUT2OUT3"]
[null,null,null,null,null,null,null,null,null,null,null,null,null,null,null,null,null,null,null,null,null,null,null,null,"増澤"]
[null,null,null,null,null,null,null,null,null,null,null,null,null,null,null,null,null,null,null,null,null,null,null,null,"豆田"]
[null,null,null,null,null,null,null,null,null,null,null,null,null,null,null,null,null,null,null,null,null,null,null,null,"吉岡"]
[null,null,null,null,null,null,null,null,null,null,null,null,null,null,null,null,null,null,null,null,null,null,null,null,"吉澤",null,null,null,null,null,null,null,null,null,"この方式でOUTから交互に並べる"]
[null,null,null,null,null,null,null,null,null,null,null,null,null,null,null,null,null,null,null,null,null,null,null,null,"吉田",null,null,null,null,null,null,null,null,null,"全体で7組、3人の組が一組の場合"]
[null,null,null,null,null,null,null,null,null,null,null,null,null,null,null,null,null,null,null,null,null,null,null,null,"渡辺",null,null,null,null,null,null,null,null,null,"OUT4組で四組目が3人になる"]
[null,null,null,null,null,null,null,null,null,null,null,null,null,null,null,null,null,null,null,null,null,null,null,null,null,null,null,null,null,null,null,null,null,null,"INは3組、すべて4人。"]
[]
[]
[]
[]
[]
[]
[]
[]
[]
[]
[]
[]
[]
[]
[]
[]
[]
[]
[]
[]
[]
[]
[]
[]
[]
[]
[]
[]
[]
[]
[]
[]
[]
[]
[]
[]
[]
[]
[]
[]
[]
[]
[]
[]
[]
[]
[]
[]
[]
[]
[]
[]
[]
[]
[]
[]
[]
[]
[]
[]
[]
[]
[]
[]
[]
[]
[]
[]
[]
[]
[]
[]
[]
[]
[]
[]
[]
[]
[]
[]
[]
[]
[]
[]
[]
[]
[]
[]
[]
[]
[]
[]
[]
[]
[]
[]
[]
[]
[]
[]
[]
[]
[]
[]
[]
[]
[]
[]
[]
[]
[]
[]
[]
[]
[]
[]
[]
[]
[]
[]
[]
[]
[]
[]
[null,null,null,null,null,null,null,null,null,null,null,null,null,null,null,null,null,null,null,null,null,null,null,null,null,null,null,null,null,null,null,null,null,null,null,null,null,null,null,null,null,null,null,null,null,null,null,null,null,null,null,null,null,null,null,null,null,0,0,10]

{"sheet":"スコア記入","index":3,"n_rows":145,"n_cols":18,"rows_kept":145,"cut":false,"hidden":false,"merged":[[7,4,7,5],[8,4,8,5],[9,4,9,5],[10,4,10,5],[80,12,81,12],[135,12,136,12],[105,12,106,12],[110,12,111,12],[115,12,116,12],[120,12,121,12],[125,12,126,12],[85,12,86,12],[90,12,91,12],[95,12,96,12],[100,12,101,12],[130,12,131,12]]}
[]
[]
[]
[]
[]
[]
[null,null,null,null,null,null,null,"プレゼント"]
[null,null,null,"開催回数"]
[null,null,null,"開催日","00:00:00",null,null,null,null,null,"参加者数＝",{"$f":"$O$140","v":0}]
[null,null,null,"場所",null,null,null,null,null,null,"ｽｺｱ記入数＝",{"$f":"$O$141","v":0}]
[null,null,null,"幹事"]
[]
[]
[]
[]
[]
[]
[]
[]
[]
[]
[]
[]
[]
[]
[]
[]
[]
[]
[]
[]
[]
[]
[]
[]
[]
[]
[]
[]
[]
[]
[]
[]
[]
[]
[]
[]
[]
[]
[]
[]
[]
[]
[]
[]
[]
[]
[]
[]
[]
[]
[]
[]
[]
[]
[]
[]
[]
[]
[]
[]
[]
[]
[]
[]
[]
[]
[]
[]
[]
[null,null,null,1,null,null,null,null,"SSSSS","BLK",null,null,"OUT 1組",{"$f":"ISTEXT(F14)","v":false},{"$f":"ISTEXT(G14)","v":false},false,false,{"$f":"COUNTIF(N81:NQ81,\"TRUE\")","v":0}]
[null,null,null,2,null,null,null,null,"SSSSS","BLK",null,null,null,{"$f":"ISNUMBER(F15)","v":false},{"$f":"ISNUMBER(G15)","v":false},false,false,0]
[null,null,null,3,null,null,null,null,"SSSSS","BLK"]
[null,null,null,4,null,null,null,null,"SSSSS","BLK"]
[null,null,null,5,null,null,null,null,"SSSSS","BLK"]
[null,null,null,6,null,null,null,null,"SSSSS","BLK",null,null,"OUT 2組",{"$f":"ISTEXT(F19)","v":false},{"$f":"ISTEXT(G19)","v":false},{"$f":"ISTEXT(H19)","v":false},{"$f":"ISTEXT(I19)","v":false},0]
[null,null,null,7,null,null,null,null,"SSSSS","BLK",null,null,null,{"$f":"ISNUMBER(F20)","v":false},{"$f":"ISNUMBER(G20)","v":false},{"$f":"ISNUMBER(H20)","v":false},{"$f":"ISNUMBER(I20)","v":false},0]
[null,null,null,8,null,null,null,null,"SSSSS","BLK"]
[null,null,null,9,null,null,null,null,"SSSSS","BLK"]
[null,null,null,10,null,null,null,null,"SSSSS","BLK"]
[null,null,null,11,null,null,null,null,"SSSSS","BLK",null,null,"OUT 3組",{"$f":"ISTEXT(F24)","v":false},{"$f":"ISTEXT(G24)","v":false},{"$f":"ISTEXT(H24)","v":false},{"$f":"ISTEXT(I24)","v":false},0]
[null,null,null,12,null,null,null,null,"SSSSS","BLK",null,null,null,{"$f":"ISNUMBER(F25)","v":false},{"$f":"ISNUMBER(G25)","v":false},{"$f":"ISNUMBER(H25)","v":false},{"$f":"ISNUMBER(I25)","v":false},0]
[null,null,null,13,null,null,null,null,"SSSSS","BLK"]
[null,null,null,14,null,null,null,null,"SSSSS","BLK"]
[null,null,null,15,null,null,null,null,"SSSSS","BLK"]
[null,null,null,16,null,null,null,null,"SSSSS","BLK",null,null,"OUT 4組",{"$f":"ISTEXT(F29)","v":false},{"$f":"ISTEXT(G29)","v":false},{"$f":"ISTEXT(H29)","v":false},{"$f":"ISTEXT(I29)","v":false},0]
[null,null,null,17,null,null,null,null,"SSSSS","BLK",null,null,null,{"$f":"ISNUMBER(F30)","v":false},{"$f":"ISNUMBER(G30)","v":false},{"$f":"ISNUMBER(H30)","v":false},{"$f":"ISNUMBER(I30)","v":false},0]
[null,null,null,18,null,null,null,null,"SSSSS","BLK"]
[null,null,null,19,null,null,null,null,"SSSSS","BLK"]
[null,null,null,20,null,null,null,null,"SSSSS","BLK"]
[null,null,null,21,null,null,null,null,"SSSSS","BLK",null,null,"OUT 5組",{"$f":"ISTEXT(F34)","v":false},{"$f":"ISTEXT(G34)","v":false},{"$f":"ISTEXT(H34)","v":false},{"$f":"ISTEXT(I34)","v":false},0]
[null,null,null,22,null,null,null,null,"SSSSS","BLK",null,null,null,{"$f":"ISNUMBER(F35)","v":false},{"$f":"ISNUMBER(G35)","v":false},{"$f":"ISNUMBER(H35)","v":false},{"$f":"ISNUMBER(I35)","v":false},0]
[null,null,null,23,null,null,null,null,"SSSSS","BLK"]
[null,null,null,24,null,null,null,null,"SSSSS","BLK"]
[null,null,null,25,null,null,null,null,"SSSSS","BLK"]
[null,null,null,26,null,null,null,null,"SSSSS","BLK",null,null,"OUT 6組",{"$f":"ISTEXT(F39)","v":false},{"$f":"ISTEXT(G39)","v":false},{"$f":"ISTEXT(H39)","v":false},{"$f":"ISTEXT(I39)","v":false},0]
[null,null,null,27,null,null,null,null,"SSSSS","BLK",null,null,null,{"$f":"ISNUMBER(F40)","v":false},{"$f":"ISNUMBER(G40)","v":false},{"$f":"ISNUMBER(H40)","v":false},{"$f":"ISNUMBER(I40)","v":false},0]
[null,null,null,28,null,null,null,null,"SSSSS","BLK"]
[null,null,null,29,null,null,null,null,"SSSSS","BLK"]
[null,null,null,30,null,null,null,null,"SSSSS","BLK"]
[null,null,null,31,null,null,null,null,"SSSSS","BLK",null,null,"IN 1組",{"$f":"ISTEXT(F44)","v":false},{"$f":"ISTEXT(G44)","v":false},{"$f":"ISTEXT(H44)","v":false},{"$f":"ISTEXT(I44)","v":false},0]
[null,null,null,32,null,null,null,null,"SSSSS","BLK",null,null,null,{"$f":"ISNUMBER(F45)","v":false},{"$f":"ISNUMBER(G45)","v":false},{"$f":"ISNUMBER(H45)","v":false},{"$f":"ISNUMBER(I45)","v":false},0]
[null,null,null,33,null,null,null,null,"SSSSS","BLK"]
[null,null,null,34,null,null,null,null,"SSSSS","BLK"]
[null,null,null,35,null,null,null,null,"SSSSS","BLK"]
[null,null,null,36,null,null,null,null,"SSSSS","BLK",null,null,"IN 2組",{"$f":"ISTEXT(F49)","v":false},{"$f":"ISTEXT(G49)","v":false},{"$f":"ISTEXT(H49)","v":false},{"$f":"ISTEXT(I49)","v":false},0]
[null,null,null,37,null,null,null,null,"SSSSS","BLK",null,null,null,{"$f":"ISNUMBER(F50)","v":false},{"$f":"ISNUMBER(G50)","v":false},{"$f":"ISNUMBER(H50)","v":false},{"$f":"ISNUMBER(I50)","v":false},0]
[null,null,null,38,null,null,null,null,"SSSSS","BLK"]
[null,null,null,39,null,null,null,null,"SSSSS","BLK"]
[null,null,null,40,null,null,null,null,"SSSSS","BLK"]
[null,null,null,41,null,null,null,null,"SSSSS","BLK",null,null,"IN 3組",{"$f":"ISTEXT(F54)","v":false},{"$f":"ISTEXT(G54)","v":false},{"$f":"ISTEXT(H54)","v":false},{"$f":"ISTEXT(I54)","v":false},0]
[null,null,null,42,null,null,null,null,"SSSSS","BLK",null,null,null,{"$f":"ISNUMBER(F55)","v":false},{"$f":"ISNUMBER(G55)","v":false},{"$f":"ISNUMBER(H55)","v":false},{"$f":"ISNUMBER(I55)","v":false},0]
[null,null,null,43,null,null,null,null,"SSSSS","BLK"]
[null,null,null,44,null,null,null,null,"SSSSS","BLK"]
[null,null,null,45,null,null,null,null,"SSSSS","BLK"]
[null,null,null,46,null,null,null,null,"SSSSS","BLK",null,null,"IN 4組",{"$f":"ISTEXT(F59)","v":false},{"$f":"ISTEXT(G59)","v":false},{"$f":"ISTEXT(H59)","v":false},{"$f":"ISTEXT(I59)","v":false},0]
[null,null,null,47,null,null,null,null,"SSSSS","BLK",null,null,null,{"$f":"ISNUMBER(F60)","v":false},{"$f":"ISNUMBER(G60)","v":false},{"$f":"ISNUMBER(H60)","v":false},{"$f":"ISNUMBER(I60)","v":false},0]
[null,null,null,48,null,null,null,null,"SSSSS","BLK"]
[null,null,null,49]
[null,null,null,50]
[null,null,null,51,null,null,null,null,null,null,null,null,"IN 5組",{"$f":"ISTEXT(F64)","v":false},{"$f":"ISTEXT(G64)","v":false},{"$f":"ISTEXT(H64)","v":false},{"$f":"ISTEXT(I64)","v":false},0]
[null,null,null,52,null,null,null,null,null,null,null,null,null,{"$f":"ISNUMBER(F65)","v":false},{"$f":"ISNUMBER(G65)","v":false},{"$f":"ISNUMBER(H65)","v":false},{"$f":"ISNUMBER(I65)","v":false},0]
[null,null,null,53]
[null,null,null,54]
[null,null,null,55]
[null,null,null,56,null,null,null,null,null,null,null,null,"IN 6組",{"$f":"ISTEXT(F69)","v":false},{"$f":"ISTEXT(G69)","v":false},{"$f":"ISTEXT(H69)","v":false},{"$f":"ISTEXT(I69)","v":false},0]
[null,null,null,57,null,null,null,null,null,null,null,null,null,{"$f":"ISNUMBER(F70)","v":false},{"$f":"ISNUMBER(G70)","v":false},{"$f":"ISNUMBER(H70)","v":false},{"$f":"ISNUMBER(I70)","v":false},0]
[null,null,null,58]
[null,null,null,59]
[null,null,null,60,null,null,null,null,null,null,null,null,null,"参加者数=",{"$f":"R81+R86+R91+R96+R101+R106+R111+R116+R121+R126+R131+R136","v":0}]
[null,null,null,61,null,null,null,null,null,null,null,null,null,"ｽｺｱ記入数=",{"$f":"R82+R87+R92+R97+R102+R107+R112+R117+R122+R127+R132+R137","v":0}]
[null,null,null,62]
[null,null,null,63]
[null,null,null,64]
[null,null,null,65]

{"sheet":"成績表","index":4,"n_rows":165,"n_cols":90,"rows_kept":165,"cut":false,"hidden":false,"merged":[[1,24,1,26],[4,1,9,1],[4,0,9,0],[3,23,3,26],[5,23,5,26],[8,25,8,26],[4,23,4,26]]}
[null,null,null,null,null,null,null,null,null,null,"成績表（ｽｺｱ記入用）"]
[null,null,"このシートはｽｺｱ記入専用です。ｼｰﾄ①、ｼｰﾄ④に記入したｽｺｱはここには表示されません",null,null,null,null,null,null,null,null,null,null,null,null,null,null,null,null,null,null,null,null,null,{"$f":"#REF!","v":{"$error":"#REF!"}}]
[null,null,"このシートにスコアを記入する場合、開催回数を右の欄に記入して下さい。⇒",null,null,null,null,null,null,null,null,null,null,null,null,"開催回数：","第",null,"回"]
[]
["ID","No","回数",null,1,2,3,4,5,6,7,8,9,10,11,12,13,14,15,16,17,18,null,"年間成績"]
[null,null,"開催日",null,"3/11","3/25","4/8","4/22","5/7","5/20","6/3","6/17","7/22","8/26","9/9","9/30","10/8","10/21","11/5","11/18","12/2","12/13"]
[null,null,"曜日",null,"月","月","月","月","火","月","月","月","月","月","月","月","火","月","火","月","月","金",null,"開催",{"$f":"IF($R$3<>0,$R$3,#REF!)","v":{"$error":"#REF!"}},"回"]
[null,null,"コース",null,"吉井\n南陽台\nＧＣ","緑野\nCC","梅ノ郷\nGC","ｸﾞﾘｰﾝ\nﾊﾟｰｸ\nＧＣ","甘楽\nCC","桐生\nＣＣ","小幡郷\nCC","上毛\nﾉｰｻﾞﾝ","ﾉｰｻﾞﾝ\n赤城","高山\nGC","大平洋\n高崎","ﾍﾞﾙｴｱ","白水\nCC","しぶかわ\nCC","富岡\nｶﾝﾄﾘｰ\nｻｳｽ","藤岡\n東","ｻﾝｺｰ\nｶﾝﾄﾘｰ","富岡\n倶楽部",null,"　　（参加率50%未満：＊印）",null,null,null,null,null,null,"昨年の","今年の"]
[null,null,"料金(K\\)",null,5.6,7.5,6.5,6.6,6.5,7.2,7,5,"5.0？",7.5,6,7,8.1,6.8,7.2,7,8,8.5,null,"平均","参加","順位",null,null,null,null,"平均","平均"]
[null,null,"幹　　事",null,"里中","藤田","塚越","小和瀬","田中","古海","森","塩崎","高木","神崎","小倉","笠原","伊藤","渡辺政","近藤裕","佐藤清","山中","佐土原",null,"ｽｺｱ","回数","50%<参加","全ﾒﾝﾊﾞ",null,"スコア","参加率","（固定）","(ﾏｸﾛから）"]
[77,1,"安藤",null,"","","",null,"","","","","","",null,"",null,"","","","","",null,{"$f":"IF(C11=\"\",\"\",IF(Y11=0,\"\",AVERAGE(E11:W11)))","v":""},{"$f":"IF(C11=\"\",\"\",COUNT(E11:W11))","v":0},{"$f":"IF(C11=\"\",\"\",IF(AD11<50,\"*\",RANK($AC11,$AC$11:$AC$75,1)))","v":"*"},{"$f":"IF(C11=\"\",\"\",IF(Y11=0,\"*\",RANK(X11,$X$11:$X$75,1)))","v":"*"},null,{"$f":"IF(C11=\"\",\"\",IF($AD11<49,\"*\",$X11))","v":"*"},{"$f":"IF(C11=\"\",\"\",Y11/$AD$79%)","v":0},null,95.916666666666671]
[78,2,"飯田",null,"","","",null,"","","","","","",null,"",null,"","","","","",null,{"$f":"IF(C12=\"\",\"\",IF(Y12=0,\"\",AVERAGE(E12:W12)))","v":""},{"$f":"IF(C12=\"\",\"\",COUNT(E12:W12))","v":0},{"$f":"IF(C12=\"\",\"\",IF(AD12<50,\"*\",RANK($AC12,$AC$11:$AC$75,1)))","v":"*"},{"$f":"IF(C12=\"\",\"\",IF(Y12=0,\"*\",RANK(X12,$X$11:$X$75,1)))","v":"*"},null,{"$f":"IF(C12=\"\",\"\",IF($AD12<49,\"*\",$X12))","v":"*"},{"$f":"IF(C12=\"\",\"\",Y12/$AD$79%)","v":0},null,""]
[30,3,"五十嵐",null,99,95,102,null,92,"","","","","",null,96,null,"","","","","",null,96.8,5,"*",24,null,"*",33.333333333333336,null,95.333333333333329]
[32,4,"市来",null,109,"","",null,"","","","","","",null,100,null,97,103,"",104,105,null,103,6,"*",35,null,"*",40,null,101]
[57,5,"伊藤",null,98,97,93,null,105,101,103,97,104,104,null,99,null,103,105,98,"","",null,100.53846153846153,13,24,30,null,100.53846153846153,86.666666666666671,null,100]
[33,6,"上田",null,102,"",100,null,95,"",96,"","","",null,100,null,97,102,112,"",97,null,100.11111111111111,9,23,29,null,100.11111111111111,60,null,95]
[44,7,"大塩",null,"","","",null,"","","","","","",null,"",null,"","","","","",null,"",0,"*","*",null,"*",0,null,92.818181818181813]
[86,8,"大橋",null,"","","",null,"","","","","","",null,"",null,"","","","","",null,"",0,"*","*",null,"*",0,null,95.888888888888886]
[35,9,"岡本",null,98,"",96,null,102,"",95,"","","",null,104,null,100,"",100,102,"",null,99.625,8,21,27,null,99.625,53.333333333333336,null,100.5]
[13,10,"興津",null,123,"",118,null,119,"",133,100,"","",null,"",null,"",111,"",123,"",null,118.14285714285714,7,"*",42,null,"*",46.666666666666671,null,89.5]
[68,11,"奥原",null,106,"","",null,"","",109,"","","",null,"",null,"",102,"","",98,null,103.75,4,"*",36,null,"*",26.666666666666668,null,95.6]
[59,12,"小倉",null,97,"",90,null,94,"",95,"",89,93,null,"",null,90,89,95,"",98,null,93,10,12,13,null,93,66.666666666666671,null,115.33333333333333]
[22,13,"小野山",null,"","","",null,"","","","","","",null,"",null,"","","","","",null,"",0,"*","*",null,"*",0,null,99.4]
[60,14,"笠原",null,"","","",null,"","","","","","",null,97,null,98,87,92,88,102,null,94,6,"*",16,null,"*",40,null,92.428571428571431]
[37,15,"勝田",null,"","","",null,"","","","","","",null,"",null,"","","","","",null,"",0,"*","*",null,"*",0,null,84.666666666666671]
[42,16,"神崎",null,86,"","",null,87,"","","",79,78,null,84,null,98,82,"",83,80,null,84.111111111111114,9,2,2,null,84.111111111111114,60,null,86]
[45,17,"神林",null,"","","",null,"","","","","","",null,"",null,"","","","","",null,"",0,"*","*",null,"*",0,null,97.333333333333329]
[74,18,"君島",null,95,"",83,null,86,"","","",90,"",null,93,null,89,91,"",101,100,null,92,9,9,10,null,92,60,null,79.166666666666671]
[18,19,"郷間",null,"","","",null,"","","","","","",null,"",null,"","","","","",null,"",0,"*","*",null,"*",0,null,96]
[63,20,"小林邦",null,"",91,86,null,"","",96,90,92,"",null,"",null,93,94,99,"",101,null,93.555555555555557,9,13,15,null,93.555555555555557,60,null,""]
[27,21,"小林修",null,"","","",null,"","","","","","",null,"",null,"","","","","",null,"",0,"*","*",null,"*",0,null,96.5]
[87,22,"小和瀬",null,"","",88,null,93,97,93,99,83,88,null,86,null,93,100,92,90,98,null,92.307692307692307,13,10,11,null,92.307692307692307,86.666666666666671,null,""]
[64,23,"近藤静",null,119,125,"",null,113,"",111,"",104,107,null,99,null,106,111,"",95,110,null,109.09090909090909,11,28,40,null,109.09090909090909,73.333333333333343,null,""]
[25,24,"近藤裕",null,84,"",81,null,92,81,86,84,86,"",null,79,null,82,81,85,83,88,null,84,13,1,1,null,84,86.666666666666671,null,85.5]
[34,25,"坂本",null,101,96,94,null,97,92,94,"",88,100,null,95,null,"",93,"",99,94,null,95.25,12,17,21,null,95.25,80,null,97.36363636363636]
[54,26,"佐藤清",null,97,96,82,null,89,89,99,86,89,84,null,92,null,95,98,95,94,102,null,92.466666666666669,15,11,12,null,92.466666666666669,100,null,86.75]
[75,27,"里中",null,"","","",null,"","","","","","",null,"",null,"","","","","",null,"",0,"*","*",null,"*",0,null,101.71428571428571]
[72,28,"佐土原",null,87,89,81,null,86,88,86,85,"",83,null,83,null,87,92,94,"",83,null,86.461538461538467,13,5,5,null,86.461538461538467,86.666666666666671,null,86.111111111111114]
[50,29,"塩崎",null,91,101,95,null,97,87,99,94,88,90,null,99,null,"",92,97,95,95,null,94.285714285714292,14,14,17,null,94.285714285714292,93.333333333333343,null,96.166666666666671]
[47,30,"鈴木",null,88,110,"",null,"","","","","","",null,"",null,"",90,101,96,"",null,97,5,"*",25,null,"*",33.333333333333336,null,85.07692307692308]
[52,31,"高木",null,94,96,90,null,93,"",96,99,89,92,null,103,null,94,91,97,92,99,null,94.642857142857139,14,15,18,null,94.642857142857139,93.333333333333343,null,91.666666666666671]
[58,32,"田中",null,89,88,80,null,84,92,77,"",82,83,null,86,null,85,87,88,85,87,null,85.214285714285708,14,3,3,null,85.214285714285708,93.333333333333343,null,79.666666666666671]
[84,33,"塚越",null,91,"",92,null,99,97,103,90,86,"",null,"",null,"",96,95,99,"",null,94.8,10,16,19,null,94.8,66.666666666666671,null,105.5]
[61,34,"次橋",null,"","","",null,"","",102,"","","",null,"",null,"","",117,"","",null,109.5,2,"*",41,null,"*",13.333333333333334,null,85.272727272727266]
[26,35,"坪原",null,92,88,83,null,88,88,89,"",80,"",null,87,null,93,93,"",83,92,null,88,12,6,6,null,88,80,null,93.36363636363636]
[85,36,"豊島",null,101,"","",null,"","","","","","",null,"",null,"","","","","",null,101,1,"*",31,null,"*",6.666666666666667,null,88.461538461538467]
[41,37,"中川",null,96,"",91,null,103,"",94,"",98,94,null,90,null,95,105,"",91,102,null,96.272727272727266,11,18,22,null,96.272727272727266,73.333333333333343,null,91]
[36,38,"中山",null,91,86,87,null,93,"",86,87,"",93,null,87,null,98,"",90,89,99,null,90.5,12,7,8,null,90.5,80,null,92.142857142857139]
[38,39,"林",null,"","","",null,"","","","","","",null,"",null,"","","","","",null,"",0,"*","*",null,"*",0,null,107.83333333333333]
[67,40,"福山",null,111,"",101,null,101,"",122,97,104,"",null,101,null,108,111,113,103,113,null,107.08333333333333,12,27,39,null,107.08333333333333,80,null,98.5]
[71,41,"藤田",null,102,98,101,null,100,"",96,98,"",92,null,104,null,96,100,107,98,109,null,100.07692307692308,13,22,28,null,100.07692307692308,86.666666666666671,null,95.7]
[51,42,"古海",null,104,"",102,null,102,96,104,101,"","",null,95,null,"","",105,103,"",null,101.33333333333333,9,25,33,null,101.33333333333333,60,null,98.25]
[80,43,"松岡",null,"","","",null,"","","","","","",null,"",null,"","","","","",null,"",0,"*","*",null,"*",0,null,""]
[65,44,"豆田",null,"","","",null,"","","","","","",null,"",null,"","","","","",null,"",0,"*","*",null,"*",0,null,98.666666666666671]
[3,45,"三井",null,104,108,"",null,107,"",105,"","","",null,"",null,104,107,"","",107,null,106,7,"*",37,null,"*",46.666666666666671,null,101]
[53,46,"南村",null,87,94,80,null,88,80,82,"",83,75,null,89,null,92,89,88,83,86,null,85.428571428571431,14,4,4,null,85.428571428571431,93.333333333333343,null,88.25]
[82,47,"宮田",null,"","","",null,"","",100,98,"","",null,98,null,108,"","","","",null,101,4,"*",31,null,"*",26.666666666666668,null,103.6]
[55,48,"村上",null,105,103,"",null,"",101,109,91,100,92,null,93,null,96,98,94,95,95,null,97.84615384615384,13,20,26,null,97.84615384615384,86.666666666666671,null,92]
[81,49,"森",null,"","",96,null,99,"",93,91,"","",null,"",null,94,"",98,"","",null,95.166666666666671,6,"*",20,null,"*",40,null,109.125]
[40,50,"山中",null,94,105,"",null,101,"",96,94,98,103,null,"",null,106,107,101,102,112,null,101.58333333333333,12,26,34,null,101.58333333333333,80,null,96.6]
[29,51,"湯浅",null,"","","",null,"","","","","","",null,"",null,"","","","","",null,"",0,"*","*",null,"*",0,null,92.375]
[24,52,"横山",null,"","","",null,"","","","","","",null,"",null,"","","","","",null,"",0,"*","*",null,"*",0,null,91]
[12,53,"吉澤",null,89,"",93,null,"","",95,"","",86,null,90,null,90,"","","",89,null,90.285714285714292,7,"*",7,null,"*",46.666666666666671,null,80.84615384615384]
[9,54,"吉田",null,88,95,85,null,"",82,96,"","","",null,"",null,92,"",94,97,92,null,91.222222222222229,9,8,9,null,91.222222222222229,60,null,79]
[39,55,"渡辺昭",null,"","","",null,"","","","","","",null,"",null,"","","","","",null,"",0,"*","*",null,"*",0,null,87.125]
[73,56,"渡辺政",null,91,"",93,null,102,"",101,"",97,92,null,89,null,93,99,104,"",100,null,96.454545454545453,11,19,23,null,96.454545454545453,73.333333333333343,null,""]
[66,57,"村中",null,"","","",null,"","","","","","",null,"",null,"","",106,"","",null,106,1,"*",37,null,"*",6.666666666666667,null,""]
[null,58,"奈良",null,"","","",null,"","",93,94,"","",null,"",null,"","","","","",null,93.5,2,"*",14,null,"*",13.333333333333334,null,""]
[null,null,null,null,"","","",null,"","","","","","",null,"",null,"","","","","",null,"","","","",null,"","",null,""]
[null,null,null,null,"","","",null,"","","","","","",null,"",null,"","","","","",null,"","","","",null,"","",null,""]
[null,null,null,null,"","","",null,"","","","","","",null,"",null,"","","","","",null,"","","","",null,"","",null,""]
[null,null,null,null,"","","",null,"","","","","","",null,"",null,"","","","","",null,"","","","",null,"","",null,""]
[null,63,null,null,"","",null,"","","","","","","",null,null,null,null,null,null,null,null,null,"","","","",null,"","",null,""]
[null,64,null,null,"","",null,"","","","","","","",null,null,null,null,null,null,null,null,null,"","","","",null,"","",null,""]
[null,65,null,null,"","",null,"","","","","","","",null,null,null,null,null,null,null,null,null,"","","","",null,"","",null,""]
[null,null,"合計",null,{"$f":"SUM(E11:E73)","v":3309},{"$f":"SUM(F11:F73)","v":1861},2563,0,2807,1271,3334,1775,1909,1729,0,2618,0,2872,2906,2657,2473,2833,0,{"$f":"SUM(E76:W76)","v":36917}]
[null,"参加者",null,null,{"$f":"COUNT(E11:E73)","v":34},{"$f":"COUNT(F11:F73)","v":19},28,0,29,14,34,19,21,19,0,28,0,30,30,27,26,29,0]
[null,"平均スコア",null,null,{"$f":"IF(SUM(E11:E73)=0,\"\",AVERAGE(E11:E73))","v":97.32352941176471},{"$f":"IF(SUM(F11:F73)=0,\"\",AVERAGE(F11:F73))","v":97.94736842105263},91.535714285714292,"",96.793103448275858,90.785714285714292,98.058823529411768,93.421052631578945,90.904761904761898,91,"",93.5,"",95.733333333333334,96.86666666666666,98.407407407407405,95.115384615384613,97.689655172413794,"",{"$f":"SUM(E76:W76)/SUM(E77:W77)","v":95.392764857881133},null,null,"←平均ｽｺｱ0.0表示：中止回"]
[null,"BG","スコア",null,{"$f":"IF(E77=0,\"-\",MIN(E11:E73))","v":84},{"$f":"IF(F77=0,\"-\",MIN(F11:F73))","v":86},80,"-",84,80,77,84,79,75,"-",79,"-",82,81,85,83,80,"-",{"$f":"AVERAGE(E79:W79)","v":81.266666666666666},null,null,null,null,"実開催回数＝",{"$f":"COUNT(E78:W78)","v":15}]
[null,null,"名前",null,{"$f":"IF(COUNTIF(E$11:E$73,E$79)<ROW($A1),\"\",INDEX($C$11:$C$73,SMALL(IF(E$11:E$73=E$79,ROW($C$1:$C$63)),ROW($A1))))","v":"近藤裕"},{"$f":"IF(COUNTIF(F$11:F$73,F$79)<ROW($A1),\"\",INDEX($C$11:$C$73,SMALL(IF(F$11:F$73=F$79,ROW($C$1:$C$63)),ROW($A1))))","v":"中山"},{"$f":"IF(COUNTIF(G$11:G$73,G$79)<ROW($A1),\"\",INDEX($C$11:$C$73,SMALL(IF(G$11:G$73=G$79,ROW($C$1:$C$63)),ROW($A1))))","v":"田中"},{"$f":"IF(COUNTIF(H$11:H$73,H$79)<ROW($A1),\"\",INDEX($C$11:$C$73,SMALL(IF(H$11:H$73=H$79,ROW($C$1:$C$63)),ROW($A1))))","v":""},{"$f":"IF(COUNTIF(I$11:I$73,I$79)<ROW($A1),\"\",INDEX($C$11:$C$73,SMALL(IF(I$11:I$73=I$79,ROW($C$1:$C$63)),ROW($A1))))","v":"田中"},{"$f":"IF(COUNTIF(J$11:J$73,J$79)<ROW($A1),\"\",INDEX($C$11:$C$73,SMALL(IF(J$11:J$73=J$79,ROW($C$1:$C$63)),ROW($A1))))","v":"南村"},{"$f":"IF(COUNTIF(K$11:K$73,K$79)<ROW($A1),\"\",INDEX($C$11:$C$73,SMALL(IF(K$11:K$73=K$79,ROW($C$1:$C$63)),ROW($A1))))","v":"田中"},{"$f":"IF(COUNTIF(L$11:L$73,L$79)<ROW($A1),\"\",INDEX($C$11:$C$73,SMALL(IF(L$11:L$73=L$79,ROW($C$1:$C$63)),ROW($A1))))","v":"近藤裕"},{"$f":"IF(COUNTIF(M$11:M$73,M$79)<ROW($A1),\"\",INDEX($C$11:$C$73,SMALL(IF(M$11:M$73=M$79,ROW($C$1:$C$63)),ROW($A1))))","v":"神崎"},{"$f":"IF(COUNTIF(N$11:N$73,N$79)<ROW($A1),\"\",INDEX($C$11:$C$73,SMALL(IF(N$11:N$73=N$79,ROW($C$1:$C$63)),ROW($A1))))","v":"南村"},{"$f":"IF(COUNTIF(O$11:O$73,O$79)<ROW($A1),\"\",INDEX($C$11:$C$73,SMALL(IF(O$11:O$73=O$79,ROW($C$1:$C$63)),ROW($A1))))","v":""},{"$f":"IF(COUNTIF(P$11:P$73,P$79)<ROW($A1),\"\",INDEX($C$11:$C$73,SMALL(IF(P$11:P$73=P$79,ROW($C$1:$C$63)),ROW($A1))))","v":"近藤裕"},{"$f":"IF(COUNTIF(Q$11:Q$73,Q$79)<ROW($A1),\"\",INDEX($C$11:$C$73,SMALL(IF(Q$11:Q$73=Q$79,ROW($C$1:$C$63)),ROW($A1))))","v":""},{"$f":"IF(COUNTIF(R$11:R$73,R$79)<ROW($A1),\"\",INDEX($C$11:$C$73,SMALL(IF(R$11:R$73=R$79,ROW($C$1:$C$63)),ROW($A1))))","v":"近藤裕"},{"$f":"IF(COUNTIF(S$11:S$73,S$79)<ROW($A1),\"\",INDEX($C$11:$C$73,SMALL(IF(S$11:S$73=S$79,ROW($C$1:$C$63)),ROW($A1))))","v":"近藤裕"},{"$f":"IF(COUNTIF(T$11:T$73,T$79)<ROW($A1),\"\",INDEX($C$11:$C$73,SMALL(IF(T$11:T$73=T$79,ROW($C$1:$C$63)),ROW($A1))))","v":"近藤裕"},{"$f":"IF(COUNTIF(U$11:U$73,U$79)<ROW($A1),\"\",INDEX($C$11:$C$73,SMALL(IF(U$11:U$73=U$79,ROW($C$1:$C$63)),ROW($A1))))","v":"神崎"},{"$f":"IF(COUNTIF(V$11:V$73,V$79)<ROW($A1),\"\",INDEX($C$11:$C$73,SMALL(IF(V$11:V$73=V$79,ROW($C$1:$C$63)),ROW($A1))))","v":"神崎"},{"$f":"IF(COUNTIF(W$11:W$73,W$79)<ROW($A1),\"\",INDEX($C$11:$C$73,SMALL(IF(W$11:W$73=W$79,ROW($C$1:$C$63)),ROW($A1))))","v":""}]
[null,null,null,null,{"$f":"IF(COUNTIF(E$11:E$73,E$79)<ROW($A2),\"\",INDEX($C$11:$C$73,SMALL(IF(E$11:E$73=E$79,ROW($C$1:$C$63)),ROW($A2))))","v":""},{"$f":"IF(COUNTIF(F$11:F$73,F$79)<ROW($A2),\"\",INDEX($C$11:$C$73,SMALL(IF(F$11:F$73=F$79,ROW($C$1:$C$63)),ROW($A2))))","v":""},{"$f":"IF(COUNTIF(G$11:G$73,G$79)<ROW($A2),\"\",INDEX($C$11:$C$73,SMALL(IF(G$11:G$73=G$79,ROW($C$1:$C$63)),ROW($A2))))","v":"南村"},{"$f":"IF(COUNTIF(H$11:H$73,H$79)<ROW($A2),\"\",INDEX($C$11:$C$73,SMALL(IF(H$11:H$73=H$79,ROW($C$1:$C$63)),ROW($A2))))","v":""},{"$f":"IF(COUNTIF(I$11:I$73,I$79)<ROW($A2),\"\",INDEX($C$11:$C$73,SMALL(IF(I$11:I$73=I$79,ROW($C$1:$C$63)),ROW($A2))))","v":""},{"$f":"IF(COUNTIF(J$11:J$73,J$79)<ROW($A2),\"\",INDEX($C$11:$C$73,SMALL(IF(J$11:J$73=J$79,ROW($C$1:$C$63)),ROW($A2))))","v":""},{"$f":"IF(COUNTIF(K$11:K$73,K$79)<ROW($A2),\"\",INDEX($C$11:$C$73,SMALL(IF(K$11:K$73=K$79,ROW($C$1:$C$63)),ROW($A2))))","v":""},{"$f":"IF(COUNTIF(L$11:L$73,L$79)<ROW($A2),\"\",INDEX($C$11:$C$73,SMALL(IF(L$11:L$73=L$79,ROW($C$1:$C$63)),ROW($A2))))","v":""},{"$f":"IF(COUNTIF(M$11:M$73,M$79)<ROW($A2),\"\",INDEX($C$11:$C$73,SMALL(IF(M$11:M$73=M$79,ROW($C$1:$C$63)),ROW($A2))))","v":""},{"$f":"IF(COUNTIF(N$11:N$73,N$79)<ROW($A2),\"\",INDEX($C$11:$C$73,SMALL(IF(N$11:N$73=N$79,ROW($C$1:$C$63)),ROW($A2))))","v":""},{"$f":"IF(COUNTIF(O$11:O$73,O$79)<ROW($A2),\"\",INDEX($C$11:$C$73,SMALL(IF(O$11:O$73=O$79,ROW($C$1:$C$63)),ROW($A2))))","v":""},{"$f":"IF(COUNTIF(P$11:P$73,P$79)<ROW($A2),\"\",INDEX($C$11:$C$73,SMALL(IF(P$11:P$73=P$79,ROW($C$1:$C$63)),ROW($A2))))","v":""},{"$f":"IF(COUNTIF(Q$11:Q$73,Q$79)<ROW($A2),\"\",INDEX($C$11:$C$73,SMALL(IF(Q$11:Q$73=Q$79,ROW($C$1:$C$63)),ROW($A2))))","v":""},{"$f":"IF(COUNTIF(R$11:R$73,R$79)<ROW($A2),\"\",INDEX($C$11:$C$73,SMALL(IF(R$11:R$73=R$79,ROW($C$1:$C$63)),ROW($A2))))","v":""},{"$f":"IF(COUNTIF(S$11:S$73,S$79)<ROW($A2),\"\",INDEX($C$11:$C$73,SMALL(IF(S$11:S$73=S$79,ROW($C$1:$C$63)),ROW($A2))))","v":""},{"$f":"IF(COUNTIF(T$11:T$73,T$79)<ROW($A2),\"\",INDEX($C$11:$C$73,SMALL(IF(T$11:T$73=T$79,ROW($C$1:$C$63)),ROW($A2))))","v":""},{"$f":"IF(COUNTIF(U$11:U$73,U$79)<ROW($A2),\"\",INDEX($C$11:$C$73,SMALL(IF(U$11:U$73=U$79,ROW($C$1:$C$63)),ROW($A2))))","v":"近藤裕"},{"$f":"IF(COUNTIF(V$11:V$73,V$79)<ROW($A2),\"\",INDEX($C$11:$C$73,SMALL(IF(V$11:V$73=V$79,ROW($C$1:$C$63)),ROW($A2))))","v":""},{"$f":"IF(COUNTIF(W$11:W$73,W$79)<ROW($A2),\"\",INDEX($C$11:$C$73,SMALL(IF(W$11:W$73=W$79,ROW($C$1:$C$63)),ROW($A2))))","v":""}]
[null,null,null,null,{"$f":"IF(COUNTIF(E$11:E$73,E$79)<ROW($A3),\"\",INDEX($C$11:$C$73,SMALL(IF(E$11:E$73=E$79,ROW($C$1:$C$63)),ROW($A3))))","v":""},{"$f":"IF(COUNTIF(F$11:F$73,F$79)<ROW($A3),\"\",INDEX($C$11:$C$73,SMALL(IF(F$11:F$73=F$79,ROW($C$1:$C$63)),ROW($A3))))","v":""},{"$f":"IF(COUNTIF(G$11:G$73,G$79)<ROW($A3),\"\",INDEX($C$11:$C$73,SMALL(IF(G$11:G$73=G$79,ROW($C$1:$C$63)),ROW($A3))))","v":""},{"$f":"IF(COUNTIF(H$11:H$73,H$79)<ROW($A3),\"\",INDEX($C$11:$C$73,SMALL(IF(H$11:H$73=H$79,ROW($C$1:$C$63)),ROW($A3))))","v":""},{"$f":"IF(COUNTIF(I$11:I$73,I$79)<ROW($A3),\"\",INDEX($C$11:$C$73,SMALL(IF(I$11:I$73=I$79,ROW($C$1:$C$63)),ROW($A3))))","v":""},{"$f":"IF(COUNTIF(J$11:J$73,J$79)<ROW($A3),\"\",INDEX($C$11:$C$73,SMALL(IF(J$11:J$73=J$79,ROW($C$1:$C$63)),ROW($A3))))","v":""},{"$f":"IF(COUNTIF(K$11:K$73,K$79)<ROW($A3),\"\",INDEX($C$11:$C$73,SMALL(IF(K$11:K$73=K$79,ROW($C$1:$C$63)),ROW($A3))))","v":""},{"$f":"IF(COUNTIF(L$11:L$73,L$79)<ROW($A3),\"\",INDEX($C$11:$C$73,SMALL(IF(L$11:L$73=L$79,ROW($C$1:$C$63)),ROW($A3))))","v":""},{"$f":"IF(COUNTIF(M$11:M$73,M$79)<ROW($A3),\"\",INDEX($C$11:$C$73,SMALL(IF(M$11:M$73=M$79,ROW($C$1:$C$63)),ROW($A3))))","v":""},{"$f":"IF(COUNTIF(N$11:N$73,N$79)<ROW($A3),\"\",INDEX($C$11:$C$73,SMALL(IF(N$11:N$73=N$79,ROW($C$1:$C$63)),ROW($A3))))","v":""},{"$f":"IF(COUNTIF(O$11:O$73,O$79)<ROW($A3),\"\",INDEX($C$11:$C$73,SMALL(IF(O$11:O$73=O$79,ROW($C$1:$C$63)),ROW($A3))))","v":""},{"$f":"IF(COUNTIF(P$11:P$73,P$79)<ROW($A3),\"\",INDEX($C$11:$C$73,SMALL(IF(P$11:P$73=P$79,ROW($C$1:$C$63)),ROW($A3))))","v":""},{"$f":"IF(COUNTIF(Q$11:Q$73,Q$79)<ROW($A3),\"\",INDEX($C$11:$C$73,SMALL(IF(Q$11:Q$73=Q$79,ROW($C$1:$C$63)),ROW($A3))))","v":""},{"$f":"IF(COUNTIF(R$11:R$73,R$79)<ROW($A3),\"\",INDEX($C$11:$C$73,SMALL(IF(R$11:R$73=R$79,ROW($C$1:$C$63)),ROW($A3))))","v":""},{"$f":"IF(COUNTIF(S$11:S$73,S$79)<ROW($A3),\"\",INDEX($C$11:$C$73,SMALL(IF(S$11:S$73=S$79,ROW($C$1:$C$63)),ROW($A3))))","v":""},{"$f":"IF(COUNTIF(T$11:T$73,T$79)<ROW($A3),\"\",INDEX($C$11:$C$73,SMALL(IF(T$11:T$73=T$79,ROW($C$1:$C$63)),ROW($A3))))","v":""},{"$f":"IF(COUNTIF(U$11:U$73,U$79)<ROW($A3),\"\",INDEX($C$11:$C$73,SMALL(IF(U$11:U$73=U$79,ROW($C$1:$C$63)),ROW($A3))))","v":"坪原"},{"$f":"IF(COUNTIF(V$11:V$73,V$79)<ROW($A3),\"\",INDEX($C$11:$C$73,SMALL(IF(V$11:V$73=V$79,ROW($C$1:$C$63)),ROW($A3))))","v":""},{"$f":"IF(COUNTIF(W$11:W$73,W$79)<ROW($A3),\"\",INDEX($C$11:$C$73,SMALL(IF(W$11:W$73=W$79,ROW($C$1:$C$63)),ROW($A3))))","v":""}]
[null,"ス","70台",null,{"$f":"IF(E$80=\"\",\"\",(COUNTIF(E$11:E$73,\">=70\")-COUNTIF(E$11:E$73,\">=80\")))","v":0},{"$f":"IF(F$80=\"\",\"\",(COUNTIF(F$11:F$73,\">=70\")-COUNTIF(F$11:F$73,\">=80\")))","v":0},0,"",0,0,1,0,1,2,"",1,"",0,0,0,0,0,""]
[null,"コ","80台",null,{"$f":"IF(E$80=\"\",\"\",COUNTIF(E$11:E$73,\">=80\")-COUNTIF(E$11:E$73,\">=90\"))","v":8},{"$f":"IF(F$80=\"\",\"\",COUNTIF(F$11:F$73,\">=80\")-COUNTIF(F$11:F$73,\">=90\"))","v":4},11,"",7,7,5,4,11,5,"",8,"",4,6,3,7,6,""]
[null,"ア","90台",null,{"$f":"IF(E$80=\"\",\"\",COUNTIF(E$11:E$73,\">=90\")-COUNTIF(E$11:E$73,\">=100\"))","v":14},{"$f":"IF(F$80=\"\",\"\",COUNTIF(F$11:F$73,\">=90\")-COUNTIF(F$11:F$73,\">=100\"))","v":9},11,"",11,5,16,13,5,8,"",13,"",19,12,14,12,11,""]
[null,"分","100台",null,{"$f":"IF(E$80=\"\",\"\",COUNTIF(E$11:E$73,\">=100\"))","v":12},{"$f":"IF(F$80=\"\",\"\",COUNTIF(F$11:F$73,\">=100\"))","v":6},6,"",11,2,12,2,4,4,"",6,"",7,12,10,7,12,""]
[null,"布","計",null,{"$f":"SUM(E83:E86)","v":34},{"$f":"SUM(F83:F86)","v":19},28,0,29,14,34,19,21,19,0,28,0,30,30,27,26,29,0]
[]
[]
[]
[]
[]
[]
[]
[]
[]
[]
[]
[]
[]
[null,null,null,null,null,null,null,null,null,null,null,null,null,null,null,null,null,null,null,null,null,null,null,null,null,null,null,null,null,null,null,null,null,null,null,null,null,null,null,null,null,null,null,null,null,null,null,null,null,null,null,null,null,null,null,null,null,null,null,null,null,null,null,null,null,null,null,null,null,null,null,null,null,null,null,null,null,null,null,null,null,null,null,null,null,null,null,null,null,20000]
[null,null,null,null,null,null,null,null,null,null,null,null,null,null,null,null,null,null,null,null,null,null,null,null,null,null,null,null,null,null,null,null,null,null,null,null,null,null,null,null,null,null,null,null,null,null,null,null,null,null,null,null,null,null,null,null,null,null,null,null,null,null,null,null,null,null,null,null,null,null,null,null,null,null,null,null,null,null,null,null,null,null,null,null,null,null,null,null,null,20000]
[null,null,null,null,null,null,null,null,null,null,null,null,null,null,null,null,null,null,null,null,null,null,null,null,null,null,null,null,null,null,null,null,null,null,null,null,null,null,null,null,null,null,null,null,null,null,null,null,null,null,null,null,null,null,null,null,null,null,null,null,null,null,null,null,null,null,null,null,null,null,null,null,null,null,null,null,null,null,null,null,null,null,null,null,null,null,null,null,null,20000]
[null,null,null,null,null,null,null,null,null,null,null,null,null,null,null,null,null,null,null,null,null,null,null,null,null,null,null,null,null,null,null,null,null,null,null,null,null,null,null,null,null,null,null,null,null,null,null,null,null,null,null,null,null,null,null,null,null,null,null,null,null,null,null,null,null,null,null,null,null,null,null,null,null,null,null,null,null,null,null,null,null,null,null,null,null,null,null,null,null,20000]
[null,null,null,null,null,null,null,null,null,null,null,null,null,null,null,null,null,null,null,null,null,null,null,null,null,null,null,null,null,null,null,null,null,null,null,null,null,null,null,null,null,null,null,null,null,null,null,null,null,null,null,null,null,null,null,null,null,null,null,null,null,null,null,null,null,null,null,null,null,null,null,null,null,null,null,null,null,null,null,null,null,null,null,null,null,null,null,null,null,20000]
[null,null,null,null,null,null,null,null,null,null,null,null,null,null,null,null,null,null,null,null,null,null,null,null,null,null,null,null,null,null,null,null,null,null,null,null,null,null,null,null,null,null,null,null,null,null,null,null,null,null,null,null,null,null,null,null,null,null,null,null,null,null,null,null,null,null,null,null,null,null,null,null,null,null,null,null,null,null,null,null,null,null,null,null,null,null,null,null,null,20000]
[null,null,null,null,null,null,null,null,null,null,null,null,null,null,null,null,null,null,null,null,null,null,null,null,null,null,null,null,null,null,null,null,null,null,null,null,null,null,null,null,null,null,null,null,null,null,null,null,null,null,null,null,null,null,null,null,null,null,null,null,null,null,null,null,null,null,null,null,null,null,null,null,null,null,null,null,null,null,null,null,null,null,null,null,null,null,null,null,null,20000]
[null,null,null,null,null,null,null,null,null,null,null,null,null,null,null,null,null,null,null,null,null,null,null,null,null,null,null,null,null,null,null,null,null,null,null,null,null,null,null,null,null,null,null,null,null,null,null,null,null,null,null,null,null,null,null,null,null,null,null,null,null,null,null,null,null,null,null,null,null,null,null,null,null,null,null,null,null,null,null,null,null,null,null,null,null,null,null,null,null,20000]
[null,null,null,null,null,null,null,null,null,null,null,null,null,null,null,null,null,null,null,null,null,null,null,null,null,null,null,null,null,null,null,null,null,null,null,null,null,null,null,null,null,null,null,null,null,null,null,null,null,null,null,null,null,null,null,null,null,null,null,null,null,null,null,null,null,null,null,null,null,null,null,null,null,null,null,null,null,null,null,null,null,null,null,null,null,null,null,null,null,20000]
[null,null,null,null,null,null,null,null,null,null,null,null,null,null,null,null,null,null,null,null,null,null,null,null,null,null,null,null,null,null,null,null,null,null,null,null,null,null,null,null,null,null,null,null,null,null,null,null,null,null,null,null,null,null,null,null,null,null,null,null,null,null,null,null,null,null,null,null,null,null,null,null,null,null,null,null,null,null,null,null,null,null,null,null,null,null,null,null,null,20000]
[null,null,null,null,null,null,null,null,null,null,null,null,null,null,null,null,null,null,null,null,null,null,null,null,null,null,null,null,null,null,null,null,null,null,null,null,null,null,null,null,null,null,null,null,null,null,null,null,null,null,null,null,null,null,null,null,null,null,null,null,null,null,null,null,null,null,null,null,null,null,null,null,null,null,null,null,null,null,null,null,null,null,null,null,null,null,null,null,null,20000]
[null,null,null,null,null,null,null,null,null,null,null,null,null,null,null,null,null,null,null,null,null,null,null,null,null,null,null,null,null,null,null,null,null,null,null,null,null,null,null,null,null,null,null,null,null,null,null,null,null,null,null,null,null,null,null,null,null,null,null,null,null,null,null,null,null,null,null,null,null,null,null,null,null,null,null,null,null,null,null,null,null,null,null,null,null,null,null,null,null,20000]
[null,null,null,null,null,null,null,null,null,null,null,null,null,null,null,null,null,null,null,null,null,null,null,null,null,null,null,null,null,null,null,null,null,null,null,null,null,null,null,null,null,null,null,null,null,null,null,null,null,null,null,null,null,null,null,null,null,null,null,null,null,null,null,null,null,null,null,null,null,null,null,null,null,null,null,null,null,null,null,null,null,null,null,null,null,null,null,null,null,20000]
[null,null,null,null,null,null,null,null,null,null,null,null,null,null,null,null,null,null,null,null,null,null,null,null,null,null,null,null,null,null,null,null,null,null,null,null,null,null,null,null,null,null,null,null,null,null,null,null,null,null,null,null,null,null,null,null,null,null,null,null,null,null,null,null,null,null,null,null,null,null,null,null,null,null,null,null,null,null,null,null,null,null,null,null,null,null,null,null,null,20000]
[null,null,null,null,null,null,null,null,null,null,null,null,null,null,null,null,null,null,null,null,null,null,null,null,null,null,null,null,null,null,null,null,null,null,null,null,null,null,null,null,null,null,null,null,null,null,null,null,null,null,null,null,null,null,null,null,null,null,null,null,null,null,null,null,null,null,null,null,null,null,null,null,null,null,null,null,null,null,null,null,null,null,null,null,null,null,null,null,null,20000]
[null,null,null,null,null,null,null,null,null,null,null,null,null,null,null,null,null,null,null,null,null,null,null,null,null,null,null,null,null,null,null,null,null,null,null,null,null,null,null,null,null,null,null,null,null,null,null,null,null,null,null,null,null,null,null,null,null,null,null,null,null,null,null,null,null,null,null,null,null,null,null,null,null,null,null,null,null,null,null,null,null,null,null,null,null,null,null,null,null,20000]
[null,null,null,null,null,null,null,null,null,null,null,null,null,null,null,null,null,null,null,null,null,null,null,null,null,null,null,null,null,null,null,null,null,null,null,null,null,null,null,null,null,null,null,null,null,null,null,null,null,null,null,null,null,null,null,null,null,null,null,null,null,null,null,null,null,null,null,null,null,null,null,null,null,null,null,null,null,null,null,null,null,null,null,null,null,null,null,null,null,20000]
[null,null,null,null,null,null,null,null,null,null,null,null,null,null,null,null,null,null,null,null,null,null,null,null,null,null,null,null,null,null,null,null,null,null,null,null,null,null,null,null,null,null,null,null,null,null,null,null,null,null,null,null,null,null,null,null,null,null,null,null,null,null,null,null,null,null,null,null,null,null,null,null,null,null,null,null,null,null,null,null,null,null,null,null,null,null,null,null,null,20000]
[null,null,null,null,null,null,null,null,null,null,null,null,null,null,null,null,null,null,null,null,null,null,null,null,null,null,null,null,null,null,null,null,null,null,null,null,null,null,null,null,null,null,null,null,null,null,null,null,null,null,null,null,null,null,null,null,null,null,null,null,null,null,null,null,null,null,null,null,null,null,null,null,null,null,null,null,null,null,null,null,null,null,null,null,null,null,null,null,null,20000]
[null,null,null,null,null,null,null,null,null,null,null,null,null,null,null,null,null,null,null,null,null,null,null,null,null,null,null,null,null,null,null,null,null,null,null,null,null,null,null,null,null,null,null,null,null,null,null,null,null,null,null,null,null,null,null,null,null,null,null,null,null,null,null,null,null,null,null,null,null,null,null,null,null,null,null,null,null,null,null,null,null,null,null,null,null,null,null,null,null,20000]
[null,null,null,null,null,null,null,null,null,null,null,null,null,null,null,null,null,null,null,null,null,null,null,null,null,null,null,null,null,null,null,null,null,null,null,null,null,null,null,null,null,null,null,null,null,null,null,null,null,null,null,null,null,null,null,null,null,null,null,null,null,null,null,null,null,null,null,null,null,null,null,null,null,null,null,null,null,null,null,null,null,null,null,null,null,null,null,null,null,20000]
[null,null,null,null,null,null,null,null,null,null,null,null,null,null,null,null,null,null,null,null,null,null,null,null,null,null,null,null,null,null,null,null,null,null,null,null,null,null,null,null,null,null,null,null,null,null,null,null,null,null,null,null,null,null,null,null,null,null,null,null,null,null,null,null,null,null,null,null,null,null,null,null,null,null,null,null,null,null,null,null,null,null,null,null,null,null,null,null,null,20000]
[null,null,null,null,null,null,null,null,null,null,null,null,null,null,null,null,null,null,null,null,null,null,null,null,null,null,null,null,null,null,null,null,null,null,null,null,null,null,null,null,null,null,null,null,null,null,null,null,null,null,null,null,null,null,null,null,null,null,null,null,null,null,null,null,null,null,null,null,null,null,null,null,null,null,null,null,null,null,null,null,null,null,null,null,null,null,null,null,null,20000]
[null,null,null,null,null,null,null,null,null,null,null,null,null,null,null,null,null,null,null,null,null,null,null,null,null,null,null,null,null,null,null,null,null,null,null,null,null,null,null,null,null,null,null,null,null,null,null,null,null,null,null,null,null,null,null,null,null,null,null,null,null,null,null,null,null,null,null,null,null,null,null,null,null,null,null,null,null,null,null,null,null,null,null,null,null,null,null,null,null,20000]
[null,null,null,null,null,null,null,null,null,null,null,null,null,null,null,null,null,null,null,null,null,null,null,null,null,null,null,null,null,null,null,null,null,null,null,null,null,null,null,null,null,null,null,null,null,null,null,null,null,null,null,null,null,null,null,null,null,null,null,null,null,null,null,null,null,null,null,null,null,null,null,null,null,null,null,null,null,null,null,null,null,null,null,null,null,null,null,null,null,20000]
[null,null,null,null,null,null,null,null,null,null,null,null,null,null,null,null,null,null,null,null,null,null,null,null,null,null,null,null,null,null,null,null,null,null,null,null,null,null,null,null,null,null,null,null,null,null,null,null,null,null,null,null,null,null,null,null,null,null,null,null,null,null,null,null,null,null,null,null,null,null,null,null,null,null,null,null,null,null,null,null,null,null,null,null,null,null,null,null,null,20000]
[null,null,null,null,null,null,null,null,null,null,null,null,null,null,null,null,null,null,null,null,null,null,null,null,null,null,null,null,null,null,null,null,null,null,null,null,null,null,null,null,null,null,null,null,null,null,null,null,null,null,null,null,null,null,null,null,null,null,null,null,null,null,null,null,null,null,null,null,null,null,null,null,null,null,null,null,null,null,null,null,null,null,null,null,null,null,null,null,null,20000]
[null,null,null,null,null,null,null,null,null,null,null,null,null,null,null,null,null,null,null,null,null,null,null,null,null,null,null,null,null,null,null,null,null,null,null,null,null,null,null,null,null,null,null,null,null,null,null,null,null,null,null,null,null,null,null,null,null,null,null,null,null,null,null,null,null,null,null,null,null,null,null,null,null,null,null,null,null,null,null,null,null,null,null,null,null,null,null,null,null,20000]
[null,null,null,null,null,null,null,null,null,null,null,null,null,null,null,null,null,null,null,null,null,null,null,null,null,null,null,null,null,null,null,null,null,null,null,null,null,null,null,null,null,null,null,null,null,null,null,null,null,null,null,null,null,null,null,null,null,null,null,null,null,null,null,null,null,null,null,null,null,null,null,null,null,null,null,null,null,null,null,null,null,null,null,null,null,null,null,null,null,20000]
[null,null,null,null,null,null,null,null,null,null,null,null,null,null,null,null,null,null,null,null,null,null,null,null,null,null,null,null,null,null,null,null,null,null,null,null,null,null,null,null,null,null,null,null,null,null,null,null,null,null,null,null,null,null,null,null,null,null,null,null,null,null,null,null,null,null,null,null,null,null,null,null,null,null,null,null,null,null,null,null,null,null,null,null,null,null,null,null,null,20000]
[null,null,null,null,null,null,null,null,null,null,null,null,null,null,null,null,null,null,null,null,null,null,null,null,null,null,null,null,null,null,null,null,null,null,null,null,null,null,null,null,null,null,null,null,null,null,null,null,null,null,null,null,null,null,null,null,null,null,null,null,null,null,null,null,null,null,null,null,null,null,null,null,null,null,null,null,null,null,null,null,null,null,null,null,null,null,null,null,null,20000]
[null,null,null,null,null,null,null,null,null,null,null,null,null,null,null,null,null,null,null,null,null,null,null,null,null,null,null,null,null,null,null,null,null,null,null,null,null,null,null,null,null,null,null,null,null,null,null,null,null,null,null,null,null,null,null,null,null,null,null,null,null,null,null,null,null,null,null,null,null,null,null,null,null,null,null,null,null,null,null,null,null,null,null,null,null,null,null,null,null,20000]
[null,null,null,null,null,null,null,null,null,null,null,null,null,null,null,null,null,null,null,null,null,null,null,null,null,null,null,null,null,null,null,null,null,null,null,null,null,null,null,null,null,null,null,null,null,null,null,null,null,null,null,null,null,null,null,null,null,null,null,null,null,null,null,null,null,null,null,null,null,null,null,null,null,null,null,null,null,null,null,null,null,null,null,null,null,null,null,null,null,20000]
[null,null,null,null,null,null,null,null,null,null,null,null,null,null,null,null,null,null,null,null,null,null,null,null,null,null,null,null,null,null,null,null,null,null,null,null,null,null,null,null,null,null,null,null,null,null,null,null,null,null,null,null,null,null,null,null,null,null,null,null,null,null,null,null,null,null,null,null,null,null,null,null,null,null,null,null,null,null,null,null,null,null,null,null,null,null,null,null,null,20000]
[null,null,null,null,null,null,null,null,null,null,null,null,null,null,null,null,null,null,null,null,null,null,null,null,null,null,null,null,null,null,null,null,null,null,null,null,null,null,null,null,null,null,null,null,null,null,null,null,null,null,null,null,null,null,null,null,null,null,null,null,null,null,null,null,null,null,null,null,null,null,null,null,null,null,null,null,null,null,null,null,null,null,null,null,null,null,null,null,null,20000]
[null,null,null,null,null,null,null,null,null,null,null,null,null,null,null,null,null,null,null,null,null,null,null,null,null,null,null,null,null,null,null,null,null,null,null,null,null,null,null,null,null,null,null,null,null,null,null,null,null,null,null,null,null,null,null,null,null,null,null,null,null,null,null,null,null,null,null,null,null,null,null,null,null,null,null,null,null,null,null,null,null,null,null,null,null,null,null,null,null,20000]
[null,null,null,null,null,null,null,null,null,null,null,null,null,null,null,null,null,null,null,null,null,null,null,null,null,null,null,null,null,null,null,null,null,null,null,null,null,null,null,null,null,null,null,null,null,null,null,null,null,null,null,null,null,null,null,null,null,null,null,null,null,null,null,null,null,null,null,null,null,null,null,null,null,null,null,null,null,null,null,null,null,null,null,null,null,null,null,null,null,20000]
[null,null,null,null,null,null,null,null,null,null,null,null,null,null,null,null,null,null,null,null,null,null,null,null,null,null,null,null,null,null,null,null,null,null,null,null,null,null,null,null,null,null,null,null,null,null,null,null,null,null,null,null,null,null,null,null,null,null,null,null,null,null,null,null,null,null,null,null,null,null,null,null,null,null,null,null,null,null,null,null,null,null,null,null,null,null,null,null,null,20000]
[null,null,null,null,null,null,null,null,null,null,null,null,null,null,null,null,null,null,null,null,null,null,null,null,null,null,null,null,null,null,null,null,null,null,null,null,null,null,null,null,null,null,null,null,null,null,null,null,null,null,null,null,null,null,null,null,null,null,null,null,null,null,null,null,null,null,null,null,null,null,null,null,null,null,null,null,null,null,null,null,null,null,null,null,null,null,null,null,null,20000]
[null,null,null,null,null,null,null,null,null,null,null,null,null,null,null,null,null,null,null,null,null,null,null,null,null,null,null,null,null,null,null,null,null,null,null,null,null,null,null,null,null,null,null,null,null,null,null,null,null,null,null,null,null,null,null,null,null,null,null,null,null,null,null,null,null,null,null,null,null,null,null,null,null,null,null,null,null,null,null,null,null,null,null,null,null,null,null,null,null,20000]
[null,null,null,null,null,null,null,null,null,null,null,null,null,null,null,null,null,null,null,null,null,null,null,null,null,null,null,null,null,null,null,null,null,null,null,null,null,null,null,null,null,null,null,null,null,null,null,null,null,null,null,null,null,null,null,null,null,null,null,null,null,null,null,null,null,null,null,null,null,null,null,null,null,null,null,null,null,null,null,null,null,null,null,null,null,null,null,null,null,20000]
[null,null,null,null,null,null,null,null,null,null,null,null,null,null,null,null,null,null,null,null,null,null,null,null,null,null,null,null,null,null,null,null,null,null,null,null,null,null,null,null,null,null,null,null,null,null,null,null,null,null,null,null,null,null,null,null,null,null,null,null,null,null,null,null,null,null,null,null,null,null,null,null,null,null,null,null,null,null,null,null,null,null,null,null,null,null,null,null,null,20000]
[null,null,null,null,null,null,null,null,null,null,null,null,null,null,null,null,null,null,null,null,null,null,null,null,null,null,null,null,null,null,null,null,null,null,null,null,null,null,null,null,null,null,null,null,null,null,null,null,null,null,null,null,null,null,null,null,null,null,null,null,null,null,null,null,null,null,null,null,null,null,null,null,null,null,null,null,null,null,null,null,null,null,null,null,null,null,null,null,null,20000]
[null,null,null,null,null,null,null,null,null,null,null,null,null,null,null,null,null,null,null,null,null,null,null,null,null,null,null,null,null,null,null,null,null,null,null,null,null,null,null,null,null,null,null,null,null,null,null,null,null,null,null,null,null,null,null,null,null,null,null,null,null,null,null,null,null,null,null,null,null,null,null,null,null,null,null,null,null,null,null,null,null,null,null,null,null,null,null,null,null,20000]
[null,null,null,null,null,null,null,null,null,null,null,null,null,null,null,null,null,null,null,null,null,null,null,null,null,null,null,null,null,null,null,null,null,null,null,null,null,null,null,null,null,null,null,null,null,null,null,null,null,null,null,null,null,null,null,null,null,null,null,null,null,null,null,null,null,null,null,null,null,null,null,null,null,null,null,null,null,null,null,null,null,null,null,null,null,null,null,null,null,20000]
[null,null,null,null,null,null,null,null,null,null,null,null,null,null,null,null,null,null,null,null,null,null,null,null,null,null,null,null,null,null,null,null,null,null,null,null,null,null,null,null,null,null,null,null,null,null,null,null,null,null,null,null,null,null,null,null,null,null,null,null,null,null,null,null,null,null,null,null,null,null,null,null,null,null,null,null,null,null,null,null,null,null,null,null,null,null,null,null,null,20000]
[null,null,null,null,null,null,null,null,null,null,null,null,null,null,null,null,null,null,null,null,null,null,null,null,null,null,null,null,null,null,null,null,null,null,null,null,null,null,null,null,null,null,null,null,null,null,null,null,null,null,null,null,null,null,null,null,null,null,null,null,null,null,null,null,null,null,null,null,null,null,null,null,null,null,null,null,null,null,null,null,null,null,null,null,null,null,null,null,null,20000]
[null,null,null,null,null,null,null,null,null,null,null,null,null,null,null,null,null,null,null,null,null,null,null,null,null,null,null,null,null,null,null,null,null,null,null,null,null,null,null,null,null,null,null,null,null,null,null,null,null,null,null,null,null,null,null,null,null,null,null,null,null,null,null,null,null,null,null,null,null,null,null,null,null,null,null,null,null,null,null,null,null,null,null,null,null,null,null,null,null,20000]
[null,null,null,null,null,null,null,null,null,null,null,null,null,null,null,null,null,null,null,null,null,null,null,null,null,null,null,null,null,null,null,null,null,null,null,null,null,null,null,null,null,null,null,null,null,null,null,null,null,null,null,null,null,null,null,null,null,null,null,null,null,null,null,null,null,null,null,null,null,null,null,null,null,null,null,null,null,null,null,null,null,null,null,null,null,null,null,null,null,20000]
[null,null,null,null,null,null,null,null,null,null,null,null,null,null,null,null,null,null,null,null,null,null,null,null,null,null,null,null,null,null,null,null,null,null,null,null,null,null,null,null,null,null,null,null,null,null,null,null,null,null,null,null,null,null,null,null,null,null,null,null,null,null,null,null,null,null,null,null,null,null,null,null,null,null,null,null,null,null,null,null,null,null,null,null,null,null,null,null,null,20000]
[null,null,null,null,null,null,null,null,null,null,null,null,null,null,null,null,null,null,null,null,null,null,null,null,null,null,null,null,null,null,null,null,null,null,null,null,null,null,null,null,null,null,null,null,null,null,null,null,null,null,null,null,null,null,null,null,null,null,null,null,null,null,null,null,null,null,null,null,null,null,null,null,null,null,null,null,null,null,null,null,null,null,null,null,null,null,null,null,null,20000]
[null,null,null,null,null,null,null,null,null,null,null,null,null,null,null,null,null,null,null,null,null,null,null,null,null,null,null,null,null,null,null,null,null,null,null,null,null,null,null,null,null,null,null,null,null,null,null,null,null,null,null,null,null,null,null,null,null,null,null,null,null,null,null,null,null,null,null,null,null,null,null,null,null,null,null,null,null,null,null,null,null,null,null,null,null,null,null,null,null,20000]
[null,null,null,null,null,null,null,null,null,null,null,null,null,null,null,null,null,null,null,null,null,null,null,null,null,null,null,null,null,null,null,null,null,null,null,null,null,null,null,null,null,null,null,null,null,null,null,null,null,null,null,null,null,null,null,null,null,null,null,null,null,null,null,null,null,null,null,null,null,null,null,null,null,null,null,null,null,null,null,null,null,null,null,null,null,null,null,null,null,20000]
[null,null,null,null,null,null,null,null,null,null,null,null,null,null,null,null,null,null,null,null,null,null,null,null,null,null,null,null,null,null,null,null,null,null,null,null,null,null,null,null,null,null,null,null,null,null,null,null,null,null,null,null,null,null,null,null,null,null,null,null,null,null,null,null,null,null,null,null,null,null,null,null,null,null,null,null,null,null,null,null,null,null,null,null,null,null,null,null,null,20000]
[null,null,null,null,null,null,null,null,null,null,null,null,null,null,null,null,null,null,null,null,null,null,null,null,null,null,null,null,null,null,null,null,null,null,null,null,null,null,null,null,null,null,null,null,null,null,null,null,null,null,null,null,null,null,null,null,null,null,null,null,null,null,null,null,null,null,null,null,null,null,null,null,null,null,null,null,null,null,null,null,null,null,null,null,null,null,null,null,null,20000]
[null,null,null,null,null,null,null,null,null,null,null,null,null,null,null,null,null,null,null,null,null,null,null,null,null,null,null,null,null,null,null,null,null,null,null,null,null,null,null,null,null,null,null,null,null,null,null,null,null,null,null,null,null,null,null,null,null,null,null,null,null,null,null,null,null,null,null,null,null,null,null,null,null,null,null,null,null,null,null,null,null,null,null,null,null,null,null,null,null,20000]
[null,null,null,null,null,null,null,null,null,null,null,null,null,null,null,null,null,null,null,null,null,null,null,null,null,null,null,null,null,null,null,null,null,null,null,null,null,null,null,null,null,null,null,null,null,null,null,null,null,null,null,null,null,null,null,null,null,null,null,null,null,null,null,null,null,null,null,null,null,null,null,null,null,null,null,null,null,null,null,null,null,null,null,null,null,null,null,null,null,20000]
[null,null,null,null,null,null,null,null,null,null,null,null,null,null,null,null,null,null,null,null,null,null,null,null,null,null,null,null,null,null,null,null,null,null,null,null,null,null,null,null,null,null,null,null,null,null,null,null,null,null,null,null,null,null,null,null,null,null,null,null,null,null,null,null,null,null,null,null,null,null,null,null,null,null,null,null,null,null,null,null,null,null,null,null,null,null,null,null,null,20000]
[null,null,null,null,null,null,null,null,null,null,null,null,null,null,null,null,null,null,null,null,null,null,null,null,null,null,null,null,null,null,null,null,null,null,null,null,null,null,null,null,null,null,null,null,null,null,null,null,null,null,null,null,null,null,null,null,null,null,null,null,null,null,null,null,null,null,null,null,null,null,null,null,null,null,null,null,null,null,null,null,null,null,null,null,null,null,null,null,null,20000]
[null,null,null,null,null,null,null,null,null,null,null,null,null,null,null,null,null,null,null,null,null,null,null,null,null,null,null,null,null,null,null,null,null,null,null,null,null,null,null,null,null,null,null,null,null,null,null,null,null,null,null,null,null,null,null,null,null,null,null,null,null,null,null,null,null,null,null,null,null,null,null,null,null,null,null,null,null,null,null,null,null,null,null,null,null,null,null,null,null,20000]
[null,null,null,null,null,null,null,null,null,null,null,null,null,null,null,null,null,null,null,null,null,null,null,null,null,null,null,null,null,null,null,null,null,null,null,null,null,null,null,null,null,null,null,null,null,null,null,null,null,null,null,null,null,null,null,null,null,null,null,null,null,null,null,null,null,null,null,null,null,null,null,null,null,null,null,null,null,null,null,null,null,null,null,null,null,null,null,null,null,20000]
[null,null,null,null,null,null,null,null,null,null,null,null,null,null,null,null,null,null,null,null,null,null,null,null,null,null,null,null,null,null,null,null,null,null,null,null,null,null,null,null,null,null,null,null,null,null,null,null,null,null,null,null,null,null,null,null,null,null,null,null,null,null,null,null,null,null,null,null,null,null,null,null,null,null,null,null,null,null,null,null,null,null,null,null,null,null,null,null,null,20000]
[null,null,null,null,null,null,null,null,null,null,null,null,null,null,null,null,null,null,null,null,null,null,null,null,null,null,null,null,null,null,null,null,null,null,null,null,null,null,null,null,null,null,null,null,null,null,null,null,null,null,null,null,null,null,null,null,null,null,null,null,null,null,null,null,null,null,null,null,null,null,null,null,null,null,null,null,null,null,null,null,null,null,null,null,null,null,null,null,null,20000]
[null,null,null,null,null,null,null,null,null,null,null,null,null,null,null,null,null,null,null,null,null,null,null,null,null,null,null,null,null,null,null,null,null,null,null,null,null,null,null,null,null,null,null,null,null,null,null,null,null,null,null,null,null,null,null,null,null,null,null,null,null,null,null,null,null,null,null,null,null,null,null,null,null,null,null,null,null,null,null,null,null,null,null,null,null,null,null,null,null,20000]
[null,null,null,null,null,null,null,null,null,null,null,null,null,null,null,null,null,null,null,null,null,null,null,null,null,null,null,null,null,null,null,null,null,null,null,null,null,null,null,null,null,null,null,null,null,null,null,null,null,null,null,null,null,null,null,null,null,null,null,null,null,null,null,null,null,null,null,null,null,null,null,null,null,null,null,null,null,null,null,null,null,null,null,null,null,null,null,null,null,20000]

{"sheet":"interface","index":5,"n_rows":161,"n_cols":58,"rows_kept":161,"cut":false,"hidden":false,"merged":[[21,7,21,10],[22,7,22,10],[23,7,23,10]]}
[]
[null,"成績転記用シート　シート名：[interface]で固定のこと"]
[null,"scoresheet/score02配列から記述"]
["名簿ﾘｽﾄ","成績表番号","名前","スコア",null,null,null,"組合せ表"]
[{"$f":"名簿ﾘｽﾄ!D5","v":"安藤"},1,null,null,null,null,null,"OUT/IN","ｽﾀｰﾄ時間"]
[{"$f":"名簿ﾘｽﾄ!D6","v":"飯田"},2]
[{"$f":"名簿ﾘｽﾄ!D7","v":"五十嵐"},3]
[{"$f":"名簿ﾘｽﾄ!D8","v":"市来"},4]
[{"$f":"名簿ﾘｽﾄ!D9","v":"伊藤"},5]
[{"$f":"名簿ﾘｽﾄ!D10","v":"上田"},6]
[{"$f":"名簿ﾘｽﾄ!D11","v":"大塩"},7]
[{"$f":"名簿ﾘｽﾄ!D12","v":"大橋"},8]
[{"$f":"名簿ﾘｽﾄ!D13","v":"岡本"},9]
[{"$f":"名簿ﾘｽﾄ!D14","v":"興津"},10]
[{"$f":"名簿ﾘｽﾄ!D15","v":"奥原"},11]
[{"$f":"名簿ﾘｽﾄ!D16","v":"小倉"},12]
[{"$f":"名簿ﾘｽﾄ!D17","v":"小野山"},13]
[{"$f":"名簿ﾘｽﾄ!D18","v":"笠原"},14,null,null,null,null,null,null,null,null,null,null,"new"]
[{"$f":"名簿ﾘｽﾄ!D19","v":"勝田"},15,null,null,null,null,null,null,"必要行数",{"$f":"13-COUNTBLANK(J6:J17)","v":1},"（除く、タイトル行）",null,"↑40/48行の判別用"]
[{"$f":"名簿ﾘｽﾄ!D20","v":"神崎"},16,null,null,null,null,null,null,null,null,null,null,"ﾌﾞﾗﾝｸ：40行"]
[{"$f":"名簿ﾘｽﾄ!D21","v":"神林"},17,null,null,null,null,null,"ﾌﾟﾚｾﾞﾝﾄ",null,null,null,null,"ﾏｸﾛではstring扱い"]
[{"$f":"名簿ﾘｽﾄ!D22","v":"君島"},18]
[{"$f":"名簿ﾘｽﾄ!D23","v":"郷間"},19]
[{"$f":"名簿ﾘｽﾄ!D24","v":"小林邦"},20]
[{"$f":"名簿ﾘｽﾄ!D25","v":"小林修"},21]
[{"$f":"名簿ﾘｽﾄ!D26","v":"小和瀬"},22]
[{"$f":"名簿ﾘｽﾄ!D27","v":"近藤静"},23]
[{"$f":"名簿ﾘｽﾄ!D28","v":"近藤裕"},24]
[{"$f":"名簿ﾘｽﾄ!D29","v":"坂本"},25]
[{"$f":"名簿ﾘｽﾄ!D30","v":"佐藤清"},26]
[{"$f":"名簿ﾘｽﾄ!D31","v":"里中"},27]
[{"$f":"名簿ﾘｽﾄ!D32","v":"佐土原"},28]
[{"$f":"名簿ﾘｽﾄ!D33","v":"塩崎"},29]
[{"$f":"名簿ﾘｽﾄ!D34","v":"鈴木"},30]
[{"$f":"名簿ﾘｽﾄ!D35","v":"高木"},31]
[{"$f":"名簿ﾘｽﾄ!D36","v":"田中"},32]
[{"$f":"名簿ﾘｽﾄ!D37","v":"塚越"},33]
[{"$f":"名簿ﾘｽﾄ!D38","v":"次橋"},34]
[{"$f":"名簿ﾘｽﾄ!D39","v":"坪原"},35]
[{"$f":"名簿ﾘｽﾄ!D40","v":"豊島"},36]
[{"$f":"名簿ﾘｽﾄ!D41","v":"中川"},37]
[{"$f":"名簿ﾘｽﾄ!D42","v":"中山"},38]
[{"$f":"名簿ﾘｽﾄ!D43","v":"林"},39]
[{"$f":"名簿ﾘｽﾄ!D44","v":"福山"},40]
[{"$f":"名簿ﾘｽﾄ!D45","v":"藤田"},41]
[{"$f":"名簿ﾘｽﾄ!D46","v":"古海"},42]
[{"$f":"名簿ﾘｽﾄ!D47","v":"松岡"},43]
[{"$f":"名簿ﾘｽﾄ!D48","v":"豆田"},44]
[{"$f":"名簿ﾘｽﾄ!D49","v":"三井"},45]
[{"$f":"名簿ﾘｽﾄ!D50","v":"南村"},46]
[{"$f":"名簿ﾘｽﾄ!D51","v":"宮田"},47]
[{"$f":"名簿ﾘｽﾄ!D52","v":"村上"},48]
[{"$f":"名簿ﾘｽﾄ!D53","v":"森"},49]
[{"$f":"名簿ﾘｽﾄ!D54","v":"山中"},50]
[{"$f":"名簿ﾘｽﾄ!D55","v":"湯浅"},51]
[{"$f":"名簿ﾘｽﾄ!D56","v":"横山"},52]
[{"$f":"名簿ﾘｽﾄ!D57","v":"吉澤"},53]
[{"$f":"名簿ﾘｽﾄ!D58","v":"吉田"},54]
[{"$f":"名簿ﾘｽﾄ!D59","v":"渡辺昭"},55]
[{"$f":"名簿ﾘｽﾄ!D60","v":"渡辺政"},56]
[{"$f":"名簿ﾘｽﾄ!D61","v":"村中"},57]
[{"$f":"名簿ﾘｽﾄ!D62","v":"奈良"},58]
[{"$f":"名簿ﾘｽﾄ!D63","v":0},59]
[{"$f":"名簿ﾘｽﾄ!D64","v":0},60]
[{"$f":"名簿ﾘｽﾄ!D65","v":0},61]
[{"$f":"名簿ﾘｽﾄ!D66","v":0},62]
[{"$f":"名簿ﾘｽﾄ!D67","v":0},63]
[null,64]
[null,65]
[]
[]
[]
[]
[]
[null,null,"回数＝"]
[null,null,"参加人数＝",0,"input/組合せ表の人数"]
[null,null,"スコア記入人数＝",0,"scoresheet/score01のｽｺｱ記入数"]
[null,null,"今回スコア合計=",0]
[null,null,"interfaceSheetのｽｺｱ記入人数",{"$f":"COUNT(D5:D69)","v":0},"☚新規追加"]
[null,null,"日付："]
[null,null,"場所："]
[null,null,"幹事："]
[null,null,"ｽｺｱ記入：",2,1,"ｼｰﾄ①","このヴァージョンは"]
[null,null,null,null,2,"ｼｰﾄ④","「２」に固定"]
[null,null,null,null,3,"間違い"]
[null,null,null,null,4,"ｼｰﾄ⑤"]
[null,null,null,null,5,"未記入"]
[]
[]
[]
[]
[]
[]
[]
[]
[]
[]
[]
[]
[]
[]
[]
[]
[]
[]
[]
[]
[]
[]
[]
[]
[]
[]
[]
[]
[]
[]
[]
[]
[]
[]
[]
[]
[]
[]
[]
[]
[]
[]
[]
[]
[]
[]
[]
[]
[]
[]
[]
[]
[]
[]
[]
[]
[]
[]
[]
[]
[]
[]
[]
[]
[]
[]
[]
[]
[]
[]
[]
[]
[]
[null,null,null,null,null,null,null,null,null,null,null,null,null,null,null,null,null,null,null,null,null,null,null,null,null,null,null,null,null,null,null,null,null,null,null,null,null,null,null,null,null,null,null,null,null,null,null,null,null,null,null,null,null,null,null,null,null,0]

{"sheet":"名簿ﾘｽﾄ","index":6,"n_rows":69,"n_cols":8,"rows_kept":69,"cut":false,"hidden":false,"merged":[]}
[null,null,"名簿の原点。ここへ連絡先原紙の必要項目をｺﾋﾟｰする"]
[]
[null,"ID","No","成績表表記","氏名","フリカナ","生年月日","日数"]
[null,null,0,"  --",null,null,null,1]
[null,77,1,"安藤","安藤　明夫","アンドウ　アキオ","1952-08-08",26219]
[null,78,2,"飯田","飯田　登","イイダ　ノボル","1946-03-03",28569]
[null,30,3,"五十嵐","五十嵐　信太郎","イガラシ　シンタロウ","1945-12-28",28634]
[null,32,4,"市来","市来　正浩 ","イチキ　マサヒロ","1945-02-06",28959]
[null,57,5,"伊藤","伊藤 雅明","イトウ　マサアキ","1949-07-23",27331]
[null,33,6,"上田","上田　誠一","ウエダ　セイイチ","1947-02-02",28233]
[null,44,7,"大塩","大塩 忠","オオシオ　タダシ","1948-11-29",27567]
[null,86,8,"大橋","大橋　豊","オオハシ　ユタカ","1955-10-16",25055]
[null,35,9,"岡本","岡本　馨","オカモト　カオル","1943-10-13",29441]
[null,13,10,"興津","興津　忠隆","オキツ　タダタカ","1942-02-21",30040]
[null,68,11,"奥原","奥原　博","オクハラ　ヒロシ","1949-06-08",27376]
[null,59,12,"小倉","小倉　節生","オグラ　セツオ","1948-01-06",27895]
[null,22,13,"小野山","小野山　哲夫","オノヤ マテツオ","1945-09-23",28730]
[null,60,14,"笠原","笠原　正信","カサハラ　マサノブ","1952-04-14",26335]
[null,37,15,"勝田","勝田　重雄","カツタ　シゲオ","1950-02-07",27132]
[null,42,16,"神崎","神崎　了吉","カンザキ　リョウキチ","1950-06-12",27007]
[null,45,17,"神林","神林 和夫","カンバヤシ　カズオ","1947-04-28",28148]
[null,74,18,"君島","君島　久次","キミジマ　キュウジ","1943-01-01",29726]
[null,18,19,"郷間","郷間　武志","ゴウマ　タケシ","1944-10-13",29075]
[null,63,20,"小林邦","小林　邦雄","コバヤシ　クニオ","1947-07-29",28056]
[null,27,21,"小林修","小林　修爾","コバヤシ　シュウジ","1945-11-30",28662]
[null,87,22,"小和瀬","小和瀬　靖明","コワセ　ヤスアキ","1956-08-02",24764]
[null,64,23,"近藤静","近藤　静雄","コンドウ　シズオ","1950-08-27",26931]
[null,25,24,"近藤裕","近藤　裕之","コンドウ　ヒロユキ","1946-02-16",28584]
[null,34,25,"坂本","坂本　眞","サカモト　マコト","1940-09-23",30556]
[null,54,26,"佐藤清","佐藤　清仁","サトウ　キヨヒト","1953-01-15",26059]
[null,75,27,"里中","里中　孝一郎","サトナカ　コウイチロウ","1951-02-05",26769]
[null,72,28,"佐土原","佐土原　寛","サドハラ　ヒロシ","1951-03-01",26745]
[null,50,29,"塩崎","塩崎　芳郎","シオザキ　ヨシロウ","1955-06-28",25165]
[null,47,30,"鈴木","鈴木 優","スズキ　マサル","1946-05-19",28492]
[null,52,31,"高木","高木 芳廣","タカギ　ヨシヒロ","1953-01-02",26072]
[null,58,32,"田中","田中　光助","タナカ　コウスケ","1950-10-13",26884]
[null,84,33,"塚越","塚越　良也","ツカゴシ　ヨシナリ","1946-02-05",28595]
[null,61,34,"次橋","次橋　一","ツギハシ　ハジメ","1946-11-12",28315]
[null,26,35,"坪原","坪原　功典","ツボハラ　ヨシノリ","1948-09-11",27646]
[null,85,36,"豊島","豊島　好美","トヨシマ　ヨシミ",null,45433]
[null,41,37,"中川","中川　英二","ナカガワ　エイジ","1949-09-29",27263]
[null,36,38,"中山","中山　正光","ナカヤマ　マサミツ","1948-08-29",27659]
[null,38,39,"林","林　昭二","ハヤシ　ショウジ","1946-09-28",28360]
[null,67,40,"福山","福山 正隆","フクヤマ　マサタカ","1942-01-22",30070]
[null,71,41,"藤田","藤田　真","フジタ　マコト","1952-10-27",26139]
[null,51,42,"古海","古海 正友","フルミ　マサトモ","1947-09-08",28015]
[null,80,43,"松岡","松岡　一彦","マツオカ　カズヒコ","1954-08-01",25496]
[null,65,44,"豆田","豆田　順一","マメダ　ジュンイチ","1948-11-24",27572]
[null,3,45,"三井","三井　千大","ミツイ　チヒロ","1939-07-28",30979]
[null,53,46,"南村","南村　英二","ミナミムラ　エイジ　","1951-03-10",26736]
[null,82,47,"宮田","宮田 祐二","ミヤタ　ユウジ","1956-03-01",24918]
[null,55,48,"村上","村上　明徳","ムラカミ　アキノリ","1943-03-25",29643]
[null,81,49,"森","森　健人","モリ　タケト","1954-02-16",25662]
[null,40,50,"山中","山中　廣次","ヤマナカ　コウジ","1948-03-11",27830]
[null,29,51,"湯浅","湯浅　恒男","ユアサ　ヒサオ","1943-12-08",29385]
[null,24,52,"横山","横山　洋　","ヨコヤマ　ヒロシ","1942-01-06",30086]
[null,12,53,"吉澤","吉澤　隆","ヨシザワ　タカシ","1943-04-02",29635]
[null,9,54,"吉田","吉田　一雄","ヨシダ　カズオ","1943-08-07",29508]
[null,39,55,"渡辺昭","渡辺　昭文","ワタナベ アキフミ","1948-08-14",27674]
[null,73,56,"渡辺政","渡辺　政明","ワタナベ　マサアキ","1952-10-24",26142]
[null,66,57,"村中","村中　保夫","ムラナカ　ヤスオ","1956-07-24"]
[null,null,58,"奈良","奈良　孝","ナラ　タカシ","1956-07-24"]
[]
[]
[]
[]
[]
[null,null,64,null,null,null,null,11]
[null,null,65,null,null,null,null,12]

{"sheet":"機能","index":7,"n_rows":245,"n_cols":15,"rows_kept":245,"cut":false,"hidden":false,"merged":[]}
[null,null,null,null,null,null,null,null,null,"使用配列",null,null,"参照セル","変数","機能"]
[]
["Excel Object",null,null,"このworkbookを開いたときに起動。inputｼｰﾄを呼び出す"]
["This Workbook","Workbook_Open()",null,"記入欄のLockを外す"]
["PrivateSub()",null,null,"userform10を呼び出す"]
[null,null,null,"public変数myflg1,2を初期化（true）"]
[]
[]
["PrivateSub()","input sheet","doubleclick"]
[]
[null,null,null,"対象セル範囲を限定（F12:J26)",null,null,null,null,null,null,null,null,"(F12:J32)",null,"ﾀﾞﾌﾞﾙｸﾘｯｸ対象セル範囲"]
[null,null,null,"文字色RGB(255,100,0)をﾀﾞﾌﾞﾙｸﾘｯｸであれば出席を欠席に変更とし"]
[null,null,null,"　Cells(231,53)に書き出し、出席列の名前をBLKに変える",null,null,null,null,null,null,null,null,"BA231:BA240",null,"欠席者の書き出し"]
[null,null,null,"文字色が黒（vbBlack)をﾀﾞﾌﾞﾙｸﾘｯｸであれば出席判定",null,null,null,null,null,null,null,null,"BA171:BA228",null,"出席者の書き出し"]
[null,null,null,"　文字色をRGB(255,100,0)、BOLDにしCells(171,53)へ書き足す（先着順）",null,null,null,null,null,null,null,null,"BB171:BB218","出力","出席者列からBLKをのぞいたもの（先着順）"]
[null,null,null,"　書きだした出席者からBLKを除き配列に格納（171，54）列に表示",null,null,null,null,null,"mnbr0",null,null,"AY171:AY218","出力","出欠表を左上から縦に、出席者カラーを読取り（五十音順になる）"]
[null,null,null,"出欠表から縦に出席者のみを読取り配列に格納(五十音順）",null,null,null,null,null,"mnbr1"]
[null,null,null,"　表示はCells(171,51)"]
[null,null,null,"毎回出欠表を保存する",null,null,null,null,null,null,null,null,"BH253:BL273",null,"自動記入"]
[null,"inputsheet","singleclick",null,null,null,null,null,null,null,null,null,"BH277:BL297",null,"手動記録"]
[]
[null,null,null,"拾う対象は(F12:J26), 置く対象は(R12:U23)(K9)",null,null,null,null,null,null,null,null,"F12:J26",null,"拾う対象セル範囲"]
[null,null,null,"  拾った対象の表示は(AW101), 置いたら””に戻す",null,null,null,null,null,null,null,null,"R12:U23,K9","出力","置く対象"]
[null,null,null,"置いた結果が組合せ表。",null,null,null,null,null,null,null,null,"BD171:BD218","出力","組合せ表を左上から横に読んで縦行列化"]
[null,null,null,"　singleclick上で組合せ表を縦行列に変換したものがCells(171,56)列"]
[null,null,null,null,"kumiawaseでﾏｸﾛで出欠表から組合せ表に移すか"]
[null,null,null,null,"ここで直接置いた名前を使うかは組合せ表で決定"]
[null,null,null,null,"kumiawaseで出欠表から名前を入れればここにも入る"]
[]
[null,null,null,"手入力の場合（BF161=5)入力ごとに組合せ表の内容（時刻、人名(Q12:U23)のみを"]
[null,null,null,"（AZ252:BD263)にコピーして保存。"]
[null,null,null,"UserForm1から手入力を開いたときにここを参照する"]
[null,null,null,"毎回出欠表を保存する",null,null,null,null,null,null,null,null,"BH253:BL273",null,"自動記入"]
[null,null,null,null,null,null,null,null,null,null,null,null,"BH277:BL297",null,"手動記入"]
[null,null,null,"毎回組合せ表を保存する",null,null,null,null,null,null,null,null,"BN253:BS265",null,"自動記入"]
[null,null,null,null,null,null,null,null,null,null,null,null,"BN277:BS289",null,"手動記入"]
[]
[null,"スコア記入sheet","change"]
[null,null,null,"変更（スコアの記入）があった場合、そのセルの色を薄ブルーから無色にする"]
[null,null,null,"変更のたびにBOOKを上書き保存する"]
[null,null,null,"毎回出欠表を保存する",null,null,null,null,null,null,null,null,"BH253:BL273",null,"自動記入"]
[null,null,null,null,null,null,null,null,null,null,null,null,"BH277:BL297",null,"手動記入"]
[null,null,null,"毎回組合せ表を保存する",null,null,null,null,null,null,null,null,"BN253:BS265",null,"自動記入"]
[null,null,null,null,null,null,null,null,null,null,null,null,"BN277:BS289",null,"手動記入"]
[]
[null,"組合せ表","activate","sheetを開いたときにchartsを呼び出し実行。Charts終了時に表示するsheetを組合せ表ｼｰﾄ"]
[null,null,null,"に戻すためpublic変数shtnameを使用"]
[null,"クラブ組合せ表","activate","sheetを開いたときにchartsを呼び出し実行。Charts終了時に表示するsheetをクラブ組合せ表ｼｰﾄ"]
[null,null,null,"に戻すためpublic変数shtnameを使用"]
[null,"スコア記入","activate","sheetを開いたときにchartsを呼び出し実行。Charts終了時に表示するsheetをスコア記入ｼｰﾄ"]
[null,null,null,"に戻すためpublic変数shtnameを使用"]
[]
[]
["標準モジュール","module1","kumiawase()","*出欠表から組合せ表を作成する",null,null,null,null,null,null,null,null,"input/BF169","players","参加者数"]
[null,null,null,null,null,null,null,null,null,null,null,null,"input/BF161","mode","組合せ表の並べ方"]
[null,null,null,"OUT/INの組数、各組の人数を決めるためOUT1/IN1/OUT2/IN2/",null,null,null,null,null,null,null,null,null,null,"　　五十音順：１、逆五十音：２、先着順：３、逆先着：４、直接入力：５"]
[null,null,null,"な配列で構成し、最後に奇数偶数で並べなおし",null,null,null,null,null,null,null,null,"AW105:AW116","（入力）","組合せ表OUT/INﾀｲﾄﾙ"]
[null,null,null,"出席者数に合わせて組合せ表上に[BLK]の位置を決める",null,null,null,null,null,"matrixarray1"]
[null,null,null,"OUT/INの配置を決める",null,null,null,null,null,"matrixarray5",null,null,"P11:U23","（出力）","組合せ表（乱数、年齢の前）"]
[null,null,null,null,"ダブルクリックからの出欠ﾘｽﾄ格納"]
[null,null,null,null,null,"出席者（１７１，５３）　⇒　mmbr0",null,null,null,null,null,null,null,null,"BLKの位置決定,組合せ表を埋める順序、を考慮すると"]
[null,null,null,null,null,"欠席者（２３１，５３）",null,null,null,null,null,null,null,null,"OUT１、IN1,OUT2,IN2の順のmatrisarray1で配置、組合せを決めたうえで"]
[null,null,null,null,null,null,"先着順出席者　mnbr0",null,null,null,null,null,null,null,"OUT1,OUT2,,,IN1,IN2,,,の組合せ表を作成する(matrixarray3)"]
[null,null,null,null,null,null,"五十音順出席者　mnbr1"]
[null,null,null,"出席者をmatrixarray1へ書き込み"]
[null,null,null,null,"五十音順、逆、先着順、逆"]
[null,null,null,"直接入力の場合は組合せ表を保存列の(BD171:218)を初期化する。"]
[null,null,null,"matrixarray1を組合せ表として並べなおし",null,null,null,null,null,"matrixarray3"]
[null,null,null,null,"matrixarray1はOUT1/IN1/OUT2/IN2"]
[null,null,null,null,"matrixarray3はOUT1/OUT2//IN1/IN2"]
[null,null,null,"matrixarray5も同様に処理",null,null,null,null,null,"matrixarray6"]
[]
[null,null,null,"public変数：shtnameを設定"]
[]
[]
["☆彡","module3","開催回数入力","Userform8呼び出し　開催回数入力"]
[]
[]
[]
["☆彡","module5","randamize()","*組合せ表の名前に乱数を与え、昇順に並べなおす",null,null,null,null,null,null,null,null,"BF161",null,"手入力時に乱数をするか？アラーム"]
[]
[null,null,null,"組合せ表から組合せを読取る。空欄は[BLK]に置き換え",null,null,null,null,null,"mmbr0",null,null,"R12:U23","入力","変更後の組合せとしてmmbr0へ取り込む"]
[null,null,null,"mmbr0を縦行列化",null,null,null,null,null,"mbr0",null,null,"BP171:BS182","参考出力"]
[null,null,null,"mbr0のBLKを除いた行列を作るために",null,null,null,null,null,null,null,null,"BL171:BL218",null,"mbr0"]
[null,null,null,null,"BLKを””に置き換えてExcel上に表示",null,null,null,null,null,null,null,"BM171:BM218",null,"mbr1(mbr0の空欄除き結果）"]
[null,null,null,null,"Excel上でマクロを使い空欄詰め",null,null,null,null,null,null,null,"BN171:BN218","(workarea)","参加者(mbr0)空欄除きのためのworkarea"]
[null,null,null,null,"ﾏｸﾛ上の配列に格納",null,null,null,null,"mbr1",null,null,"BL169","players","BL171:Bl218の人数を格納"]
[null,null,null,"乱数とmbr1を格納する配列を作成（2列）",null,null,null,null,null,"rnds",null,null,"BG161",null,"１：乱数化、２：小乱数化、０：乱数化なし"]
[null,null,null,"rndsをswapし乱数を昇順に並べ替え"]
[null,null,null,"rndsにmbr0と同じ空欄の位置を挿入する",null,null,null,null,null,"mbr2"]
[null,null,null,"mbr2から組合せ表うを作成する",null,null,null,null,null,"mmbr1"]
[null,null,null,"mmbr1でinputシートの組合せ表を置き換える",null,null,null,null,null,null,"\"BG161\"=1で置き換え"]
[]
[]
["☆彡","module6","older_left()","*組合せ表の対しinputシート上の名簿ﾘｽﾄから年齢と照合し",null,null,null,null,null,null,null,null,"K9",null,"幹事名を読取る"]
[null,null,null," 組内の並べ順の調整を行う"]
[]
[null,null,null,"組合せ表から組合せを読取る",null,null,null,null,null,"mmbr0"]
[null,null,null,"項目別に組合せ表に準じた配列を作り名前に応じてdataを取り出し"]
[null,null,null,null,"年齢日数",null,null,null,null,"mmbr1"]
[null,null,null,null,"今年の成績",null,null,null,null,"mmbr2"]
[null,null,null,null,"昨年の成績",null,null,null,null,"mmbr3"]
[null,null,null,null,"成績表No",null,null,null,null,"mmbr4"]
[null,null,null,null,"ID",null,null,null,null,"mmbr5"]
[null,null,null,"ただしmmbr1にてmmbr0(名前)が空欄かBLKの場合は"]
[null,null,null,"-2を設定する（右側に置くため）。幹事は-1"]
[null,null,null,"年齢検索のVLOOKUPが追加人名ではエラーになるので空白となる"]
[null,null,null,"（on error resume nextを使用しerror時は空白処理）"]
[null,null,null,"mmbr1(年齢日数）で各組内を降順にし同時にほかの項目も並び替え"]
[null,null,null,"名前の配列のみ新たに配列を作り保存。組合せ表を置き換える",null,null,null,null,null,"mmbr10"]
[]
[]
["☆彡","module7","initialize"]
[null,null,null,"出欠表：ﾌｫﾝﾄ色vbBlack,style:標準"]
[null,null,null,"回数、日時、場所、幹事、組合せ表：初期化"]
[null,null,null,"inputｼｰﾄのprivate subで書き込んだデータ：初期化"]
[]
[null,null,null,"尚　出欠表の設定"]
[null,null,null,null,"初期","fontcolor","vbBlack"]
[null,null,null,null,null,"fontstyle","標準"]
[null,null,null,null,null,"fontsiza",11]
[null,null,null,null,null,"fontname","MS Pゴシック"]
[null,null,null,null,null,"backcolor","R250G255,B250"]
[null,null,null,null,"出席表示","fontcolor","R255,G100,B0",null,"➡この色は組合せ表作成時に出席判定に使用。変更時はマクロkumiawaseも変更必要"]
[]
[null,null,null,"interfaceｼｰﾄのﾌﾟﾚｾﾞﾝﾄ欄初期化"]
[]
[]
["☆彡","module4","charts()","inputｼｰﾄの組合せ表をベースに帳票を作成",null,null,null,null,null,null,null,null,"BF169",null,"Excel上で最終的人数をGET<組合せ表でCOUNTA（）で人数GET>"]
[null,null,null,null,"組数：計算式ではなく組合せ表上で4人が\"\"になる行で",null,null,null,null,"mchrt0"]
[null,null,null,null,"決定。数式では実態に合わないことがあり得る",null,null,null,null,null,null,null,null,null,"「組合せ表」「クラブ用組合せ表」「スコア記入表」いずれもinputｼｰﾄの"]
[null,null,null,"組合せ表、組表示、スタート時間、等を読取る",null,null,null,null,null,"mchrt1",null,null,null,null,"組合せ表からデータを読取り毎回作成。"]
[null,null,null,"シート「組合せ表」に罫線を付けて表示"]
[]
[null,null,null,"クラブ用組合せ表用にmchrt2を作成し[input]シートから",null,null,null,null,null,"mchrt2"]
[null,null,null,"フリガナをVLOOKUPで導入,「クラブ組合せ表」に表示"]
[]
[null,null,null,"「ｽｺｱ記入」ｼｰﾄ作成。「input」ｼｰﾄから組合せ表全体(mchrt1)"]
[null,null,null,"および開催回数、日時等を読取り、配置、罫線を付けて書き出し"]
[null,null,null,"スコア記入ｼｰﾄの初期化はｽｺｱ記入部分以外について行う"]
[null,null,null,"追加人名があった場合はon error resume nextで空白処理"]
[]
[null,null,null,"注意：chartsの最後はpublic変数shtname(sheetname)指定のシートに戻るの"]
[null,null,null,"chartsを稼働させるときには必ずshtname=activesheet.nameを入れること"]
[]
[]
["☆彡","module2","scoresheet()","＊interfaceｼｰﾄへの書き出し"]
[null,null,null,"Application.EnableEvents = False を最初に挿入",null,null,null,null,null,null,null,null,null,null," 'スコア記入ｼｰﾄのprivatesubを起動させないため"]
[null,null,null,"「ｽｺｱ記入」ｼｰﾄを3列の配列に読み込む",null,null,null,null,null,"score01"]
[null,null,null,null,"名前、スコア、成績表番号",null,null,null,null,null,null,null,null,null,"スコア記入ｼｰﾄから名前、スコアを読み出しｲﾝﾀｰﾌｪｲｽへ書き出し"]
[null,null,null,null,null,null,null,null,null,null,null,null,null,null,"スコア記入時に組合せを変えるとそのままインターフェイスに書き込まれるが組合せ表等は変更されず"]
[null,null,null,"score01を成績表番号順に並び替え",null,null,null,null,null,"score02"]
[null,null,null,"score02、回数、日付、場所等を[interface]ｼｰﾄに書き出し"]
[null,null,null,"回数がinputｼｰﾄに記載がない場合はここで取り込む「ｽｺｱ記入」(E8)"]
[null,null,null,"score02を「成績表」に書き出し"]
[null,null,null,"[interface]シートに組合せ表全体を書きだす",null,null,null,null,null,"mchrt1"]
[null,null,null,"[interface]シートにプレゼントを書きだす"]
[]
["☆彡","module11","Auto_Open()","Excelを開いたときにinputｼｰﾄを最初にOPENする"]
[null,null,"機能停止中","開いたときに表示する場所を指定（左上E4、、inputｼｰﾄ整備後に再設定)"]
[null,null,null,"protectでinputｼｰﾄが保護されている（userinterfaceonly)誤動作防止でここでも実行"]
[]
[null,"module12","scinput","「スコア記入」クリックでscinput()が呼び出される。"]
[null,null,null,"scinput()はスコア記入ｼｰﾄを開くがこのときにこのシートのprivateSub()が"]
[null,null,null,"起動されcharts()が実行される。"]
[null,null,null,"このときの組合せ表が反映される"]
[]
[]
["☆彡","module9","ufdisplay1","Userform1　表示位置"]
[]
[null,"module13","arrange","欠席者対応　欠席者の空欄を左詰めする。確認のためuserform13を表示させる"]
[]
["☆彡","module10","scorecharts","出席者のスコア欄を着色"]
[]
[]
[]
["☆彡","module14","minirandamize","randamizeのコピーに小変更"]
[null,null,null,"randamizeで発生させた乱数（Excel上）に対しrnd()/3の乱数を加え"]
[null,null,null,"小規模な乱数化をrandamizeに追加して行う"]
[null,null,null,"内部変数はすべてrandamizeと同一"]
[]
[]
[null,"module15","memberlist","名簿ﾘｽﾄから項目別にコピーでinputｼｰﾄの名簿表を作成",null,null,null,null,null,null,null,null,null,null,"初期値はvbBlack（黒）"]
[null,null,null,"成績表から開催日程をinputｼｰﾄへコピー",null,null,null,null,null,null,null,null,null,null,"出席文字色R255,G100,B0"]
[null,null,null,"inputｼｰﾄの名簿表から出欠表ﾘｽﾄを作成、必要な色付けをする",null,null,null,null,null,null,"起動法が不明。機能はOK",null,null,null,"背景色R250G255,B250"]
[null,null,null,null,null,null,null,null,null,null,null,null,null,null,"人名背景色R235G255B221"]
["☆彡","module16","start","最初に開くwindowの大きさとセルの位置を指定"]
["☆彡","module17","kaijyo","Resetﾎﾞﾀﾝに対応　Application Enabole化"]
["☆彡","module8","automanualinput","BF161の内容に従いauto/manual入力を判断し組合せ表に組合せを呼び出す。ﾓｰﾄﾞを再設定auto:BF161=0,manual:BF161=10"]
["☆彡","module18","count","出欠表と組合せ表の人数確認（機能停止中）"]
[]
["☆彡","module19","playersnum","出欠表の色から参加、欠席、未回答数を計算しセルBP147-9に表示。このモジュールは出欠表をﾀﾞﾌﾞﾙｸﾘｯｸするたびに実行される"]
[]
[]
[null,"module20","chartsKUMIAWASE","chartsからの切り出し。Input/組合せ表から組合せｼｰﾄ作成、同時にinterfaceｼｰﾄへも書き出し"]
[]
[null,"module21","chartsCLUB","chartsからの切り出し。Input/組合せ表からクラブ提出用を作成"]
[]
[null,"module22","chartsSCORE","chartsからの切り出し。Input/組合せ表からスコア記入ｼｰﾄを作成、同時にinterfaceｼｰﾄへも書き出し"]
[]
[null,"module23","chartsSCOREfinal","chartsからの切り出し。Input/組合せ表からスコア記入ｼｰﾄを作成、同時にinterfaceｼｰﾄへも書き出し"]
[null,null,null,"chartsSCOREにスコア記入欄の着色、コメントの消去を追加"]
[null,null,null,"開くシートをスコア記入に固定"]
[]
["Userform","UserForm1","kumiawase ","Command1"]
[null,null,null,"Option1","五十音順"]
[null,null,null,"  Option2","逆五十音順"]
[null,null,null,"  Option3","出欠入力順"]
[null,null,null,"  Option4","逆出欠入力順"]
[null,null,null,"  Option5","組合せ表へ直接入力"]
[null,null,null,"Command2","出欠表をコピー保存＋Unload UserForm1"]
[]
[null,"UserForm2","charts","Command1"]
[null,null,null,"Option1","乱数を呼び出す",null,null,null,null,null,null,null,"BG161",null,"１：乱数化、２：小乱数化、０：乱数化なし"]
[null,null,null,"Option2","小乱数を呼び出す"]
[null,null,null,"Option3","年齢順を呼び出す",null,null,null,null,null,null,null,"BH161",null,"１０：年齢順、１１：なし"]
[null,null,null,"Option4","出欠表に戻す"]
[null,null,null,"Option5","何もしないでchartsを呼び出し",null,null,null,null,null,null,null,null,null,"BG161=0,BH161=11"]
[null,null,null,null,"スコア記入ｼｰﾄのprivatesub()でchangeを使っている。通常はchartsの書き込みで"]
[null,null,null,null,"起動してしまうためchartsでスコア記入ｼｰﾄに書き込む際privatesub()が起動しないようにする"]
[null,null,null,null,"Application.EnableEvents = False/trueを前後に入れる"]
[null,null,null,"Command2","Call charts and Unload UserForm2"]
[null,null,null,"Command3","Workbookに名前（回数、場所）を付けて保存"]
[]
[null,"UserForm3"]
[null,null,null,"checkbox2","参加者数とスコア記入数の確認OK?"]
[null,null,null,"checkbox3","欠席者のｽｺｱは「空欄」になっていますか"]
[null,null,null,"checkbox4","ゴルフ場からのプレゼントの記入OK?"]
[null,null,null,"checkbox5","終了後に成績表を表示しますか"]
[]
[null,null,null,"commandbutton1","上書き保存して終了"]
[]
[]
[]
[null,"UserForm4"]
[]
["☆彡","Userform14",null,"欠席者の変更方法案内、変更が済み次第arrange()を呼び出す"]
[null,null,null,"arrange()終了後Userform13で結果がOKか戻すのか入力待ちする"]
[null,null,null,"答えをpublic変数arrangevで返す"]
[null,null,null,"public変数arrangev=\"yes\"でuserform1表示"]
[null,null,null,"arrangev=\"no\"であればUserform14を再表示"]
[null,null,null,"arrangev=\"yes\"で次へ進める"]
[]
["☆彡","Userform13 ",null,"Userform14、arrange()の結果の受け皿"]
[null,null,null,"public変数arrangevで返す"]

{"sheet":"使い方","index":8,"n_rows":37,"n_cols":7,"rows_kept":37,"cut":false,"hidden":false,"merged":[]}
[]
[]
[]
[null,"出欠表",null,"出席にする","名前をダブルクリックすると文字が太字のオレンジ色になります。これで出席登録です"]
[]
[null,null,null,"出席を欠席に変える","オレンジ色の名前をダブルクリックすると黒字に変わります。確認メッセージが出ますので「OK」を「クリックせれば欠席です"]
[]
[null,null,null,"臨時に名前を登録する","出席表の右下の濃い緑色の部分に名前を追加してください。出欠の登録は上記を同じです。MAX3人まで追加できます"]
[]
[]
[null,"組合せ表の作成",null,"（A)出欠表から下記のやり方で組合せ表に名前を登録でできます。次のステップでシャッフル等の調整ができます"]
[null,null,null,null,"（１）出席表に登録した順にOUT,INに振り分ける"]
[null,null,null,null,"（２）（１）を逆順で振り分ける"]
[null,null,null,null,"（３）五十音順"]
[null,null,null,null,"（４）（３）の逆順"]
[null,null,null,"（B)組合せ表に自分で登録する"]
[null,null,null,null,"出欠表の名前を右シングルクリックし、次に組合せ表の目的の場所に再度右シングルクリックすると組合せ表に名前が入ります"]
[null,null,null,null,"消去する場合は組合せ表の消去したい名前を右シングルクリックを2回行ってください。"]
[]
[null,null,null,"組合せ表上での名前の移動、入替　以降すべてのステップで利用可能です"]
[null,null,null,null,"組合せ表上で"]
[null,null,null,null,null,"まず名前（セル）をダブルクリックすると右上の参照セルにその名前が表示されます"]
[null,null,null,null,null,"次に別の名前をダブルクリックすると確認メッセージが表示され「OK」で入れ替わります"]
[null,null,null,null,null,null,"最初が名前で名2回目も名前であれば入れ替わります"]
[null,null,null,null,null,null,"最初が名前で二回目が空白セルであれば空白セルに名前が移ります"]
[null,null,null,null,null,null,"最初が空白セルで二回目が名前であれば名前が消去されます"]
[]
[]
[null,"組合せ表の整備",null,"何もしない","組合せ表通りに必要な資料を用意します"]
[]
[null,null,null,"乱数によるシャッフル","組合せ全体をシャッフルします。実行をクリックするたびに新しいシャッフルは行われます"]
[]
[null,null,null,"MIN乱数による一部シャッフル","組合せの約3割をシャッフルします。目安として組内の一人か二人が移動します"]
[]
[null,null,null,"組内を年齢順に並び替える","左から年齢順並び替えます"]
[null,null,null,null,"空白セルがあれば右側に移動します"]
[null,null,null,null,"幹事は右側に移動します"]

{"sheet":"Sheet1","index":9,"n_rows":0,"n_cols":0,"rows_kept":0,"cut":false,"hidden":false,"merged":[]}